Name,Sub Group,Service Area's,Expense Type,Narrative,Date,Transaction Number,Amount,Supplier Name,Supplier Ref,Period,Year
Allerdale Borough Council,10601,Employee Costs,Training,External Courses & Seminar Fees,06/03/2019,429843,200.00,SGL TRAINING LTD,A00355,12+13,2018
Allerdale Borough Council,14202,Transport,Benefits,Hire Car and petrol,06/03/2019,429844,47.31,ENTERPRISE RENT A CAR,A01367,12+13,2018
Allerdale Borough Council,20150,Third Party Payments,Footways,General Partnership Service Fees,10/04/2019,429845,260.00,Redacted information - included personal information ,A00242,12+13,2018
Allerdale Borough Council,15100,Supplies & Services,Customer Services Pay Group,"Budget-Equipment, Furniture & Materials",20/03/2019,429846,139.00,EQUIP4WORK LTD T/A OFFICE FURNITURE ONLINE,A01958,12+13,2018
Allerdale Borough Council,12405,Premises,Homelessness,Rentals and Lease Charges,06/03/2019,429847,50.00,READ GUESTHOUSE,A02591,12+13,2018
Allerdale Borough Council,15103,Supplies & Services,Pest Control,Purchase of Materials,20/03/2019,429848,117.20,KILLGERM CHEMICALS LTD,A00361,12+13,2018
Allerdale Borough Council,15506,Supplies & Services,Estates,Professional Services,06/03/2019,429849,503.00,BENDLES SOLICITORS,M00163,12+13,2018
Allerdale Borough Council,12101,Premises,Multi Storey Car Park Utilities & Maint,External Maintenance & Decoration,06/03/2019,429850,"7,068.00",STOBBARTS LIMITED,C00204,12+13,2018
Allerdale Borough Council,15501,Supplies & Services,Planning Policy,Consultants Fees,27/03/2019,429851,594.00,PROGRAMME OFFICER SOLUTIONS LTD,A01852,12+13,2018
Allerdale Borough Council,12101,Premises,Corporate Property Maintenance,External Maintenance & Decoration,06/03/2019,429852,"4,565.00",TERRIS ELECTRICAL COMPANY LTD,C00014,12+13,2018
Allerdale Borough Council,12309,Premises,Corporate Property Maintenance,Fire and Safety,06/03/2019,429853,"15,000.00",COMPASS SERVICES GROUP,A00839,12+13,2018
Allerdale Borough Council,15506,Supplies & Services,Legal Services,Professional Services,06/03/2019,429854,175.00,BROCKBANK SOLICITORS,A01761,12+13,2018
Allerdale Borough Council,20150,Third Party Payments,Corporate Property Maintenance,General Partnership Service Fees,06/03/2019,429855,271.14,ORIAN SOLUTIONS LTD,A01814,12+13,2018
Allerdale Borough Council,12201,Premises,Corporate Property Maintenance,Internal Maintenance,06/03/2019,429856,928.19,STOBBARTS LIMITED,C00204,12+13,2018
Allerdale Borough Council,12101,Premises,Street Naming and Numbering,External Maintenance & Decoration,06/03/2019,429857,153.00,Redacted information - included personal information ,A00176,12+13,2018
Allerdale Borough Council,16302,Supplies & Services,Localities & Partnerships,Room Hire,06/03/2019,429858,91.20,CUMBRIA CC ,A00066,12+13,2018
Allerdale Borough Council,15904,Supplies & Services,Legal Services,Training,27/03/2019,429859,160.00,INSTITUTE OF LICENSING (EVENTS) LTD,A00315,12+13,2018
Allerdale Borough Council,15507,Supplies & Services,Land Charges Service,Searches,06/03/2019,429860,"1,993.60",CUMBRIA CC,A00066,12+13,2018
Allerdale Borough Council,15201,Supplies & Services,Chief Executive,Entertainment Of Visitors,06/03/2019,429861,70.00,HER CITI,A00441,12+13,2018
Allerdale Borough Council,26000,Earmarked Reserves,Licensing Service,Budget-Expd funded from Reserve,06/03/2019,429862,508.26,ADECCO RECRUITMENT,A00188,12+13,2018
Allerdale Borough Council,26000,Earmarked Reserves,Transfer of Land Charges Data,Budget-Expd funded from Reserve,06/03/2019,429863,583.12,ADECCO RECRUITMENT,A00188,12+13,2018
Allerdale Borough Council,26000,Earmarked Reserves,Transfer of Land Charges Data,Budget-Expd funded from Reserve,06/03/2019,429864,429.46,ADECCO RECRUITMENT,A00188,12+13,2018
Allerdale Borough Council,15508,Supplies & Services,IT Services,Subscriptions,06/03/2019,429865,995.00,SOCITM LTD,A00168,12+13,2018
Allerdale Borough Council,10401,Employee Costs,Environmental Protection,Agency Staff Costs,20/03/2019,429866,258.40,HAYS SPECIALIST RECRUITMENT LTD,A00280,12+13,2018
Allerdale Borough Council,10401,Employee Costs,Environmental Protection,Agency Staff Costs,06/03/2019,429867,918.75,G2 RECRUITMENT SOLUTIONS LTD,C00198,12+13,2018
Allerdale Borough Council,15601,Supplies & Services,Corporate Postage and Stationary,Postage,06/03/2019,429868,572.15,UK MAIL GROUP PLC,A02371,12+13,2018
Allerdale Borough Council,16302,Supplies & Services,2019 Elections,Room Hire,06/03/2019,429869,110.00,SOLWAY PLAIN FUTURES LTD,A01194,12+13,2018
Allerdale Borough Council,16302,Supplies & Services,2019 Elections,Room Hire,06/03/2019,429870,84.00,GREENWICH LEISURE LTD,A00136,12+13,2018
Allerdale Borough Council,14202,Transport,Chief Executive,Hire Car and petrol,06/03/2019,429871,97.83,ENTERPRISE RENT A CAR,A01367,12+13,2018
Allerdale Borough Council,15506,Supplies & Services,Universal Credit,Professional Services,06/03/2019,429872,100.00,CITIZENS ADVICE BUREAU,A01181,12+13,2018
Allerdale Borough Council,15101,Supplies & Services,Street Naming and Numbering,Equipment Costs,20/03/2019,429873,293.00,N SIGN LTD,A00634,12+13,2018
Allerdale Borough Council,12305,Premises,Corporate Property Maintenance,Inspections and Services,06/03/2019,429874,49.00,AQUAID (NORTH),A00123,12+13,2018
Allerdale Borough Council,15501,Supplies & Services,Revenue,Consultants Fees,06/03/2019,429875,310.00,ROSSENDALES LTD,A00964,12+13,2018
Allerdale Borough Council,15601,Supplies & Services,Corporate Postage and Stationary,Postage,06/03/2019,429876,"1,045.60",ROYAL MAIL LETTERS,X00021,12+13,2018
Allerdale Borough Council,15601,Supplies & Services,Corporate Postage and Stationary,Postage,06/03/2019,429877,234.61,ROYAL MAIL LETTERS,X00021,12+13,2018
Allerdale Borough Council,12408,Premises,Homelessness,Water & Sewage,06/03/2019,429878,273.27,UNITED UTILITIES WATER LTD,X00293,12+13,2018
Allerdale Borough Council,12408,Premises,Homelessness,Water & Sewage,06/03/2019,429879,273.27,UNITED UTILITIES WATER LTD,X00293,12+13,2018
Allerdale Borough Council,12408,Premises,Homelessness,Water & Sewage,06/03/2019,429880,273.27,UNITED UTILITIES WATER LTD,X00293,12+13,2018
Allerdale Borough Council,12408,Premises,Homelessness,Water & Sewage,06/03/2019,429881,273.27,UNITED UTILITIES WATER LTD,X00293,12+13,2018
Allerdale Borough Council,12408,Premises,Homelessness,Water & Sewage,06/03/2019,429882,448.89,UNITED UTILITIES WATER LTD,X00293,12+13,2018
Allerdale Borough Council,16300,Supplies & Services,Tourism Incentive,Budget-Miscellaneous,06/03/2019,429885,500.00,COCKERMOUTH CHAMBER OF TRADE,A01807,12+13,2018
Allerdale Borough Council,15811,Supplies & Services,IT Services,Software Maintenance,20/03/2019,429886,500.00,BARCLAYCARD COMMERCIAL ,X00207,12+13,2018
Allerdale Borough Council,15811,Supplies & Services,IT Services,Software Maintenance,26/03/2019,429887,518.24,BARCLAYCARD COMMERCIAL ,X00207,12+13,2018
Allerdale Borough Council,83605,,Waste Contract,New Bins Purchase,20/03/2019,429888,"11,854.08",MGB PLASTICS LTD,A01301,12+13,2018
Allerdale Borough Council,83605,,Waste Contract,New Bins Purchase,20/03/2019,429889,"11,854.08",MGB PLASTICS LTD,A01301,12+13,2018
Allerdale Borough Council,83605,,Waste Contract,New Bins Purchase,20/03/2019,429890,"11,854.08",MGB PLASTICS LTD,A01301,12+13,2018
Allerdale Borough Council,83605,,Waste Contract,New Bins Purchase,20/03/2019,429891,"6,556.20",CORAL PRODUCTS,A02625,12+13,2018
Allerdale Borough Council,83605,,Waste Contract,New Bins Purchase,13/03/2019,429892,"11,854.08",MGB PLASTICS LTD,A01301,12+13,2018
Allerdale Borough Council,83605,,Waste Contract,New Bins Purchase,13/03/2019,429893,"11,854.08",MGB PLASTICS LTD,A01301,12+13,2018
Allerdale Borough Council,83605,,Waste Contract,New Bins Purchase,13/03/2019,429894,"11,854.08",MGB PLASTICS LTD,A01301,12+13,2018
Allerdale Borough Council,83605,,Waste Contract,New Bins Purchase,20/03/2019,429895,"11,854.08",MGB PLASTICS LTD,A01301,12+13,2018
Allerdale Borough Council,83605,,Waste Contract,New Bins Purchase,20/03/2019,429896,"11,854.08",MGB PLASTICS LTD,A01301,12+13,2018
Allerdale Borough Council,83605,,Waste Contract,New Bins Purchase,20/03/2019,429897,"11,854.08",MGB PLASTICS LTD,A01301,12+13,2018
Allerdale Borough Council,83605,,Waste Contract,New Bins Purchase,20/03/2019,429898,"11,854.08",MGB PLASTICS LTD,A01301,12+13,2018
Allerdale Borough Council,83605,,Waste Contract,New Bins Purchase,20/03/2019,429899,"11,854.08",MGB PLASTICS LTD,A01301,12+13,2018
Allerdale Borough Council,15101,Supplies & Services,Recycling,Equipment Costs,06/03/2019,429900,416.00,J DUFFY LTD ,A01846,12+13,2018
Allerdale Borough Council,12405,Premises,Off-street - Owned,Rentals and Lease Charges,06/03/2019,429901,"72,574.91",SCOOP AM LLP,A02086,12+13,2018
Allerdale Borough Council,10601,Employee Costs,Training,External Courses & Seminar Fees,06/03/2019,429902,230.00,SHELTER TRAINING,A00593,12+13,2018
Allerdale Borough Council,15405,Supplies & Services,Waste Contract  Operational Costs,Use of External Printers,06/03/2019,429903,"10,400.00",FIRPRESS PRINTERS,A00063,12+13,2018
Allerdale Borough Council,15405,Supplies & Services,Off-street - Owned,Use of External Printers,06/03/2019,429904,545.00,FIRPRESS PRINTERS,A00063,12+13,2018
Allerdale Borough Council,15803,Supplies & Services,Waste Contract,Hardware Purchase,06/03/2019,429905,"62,375.00",FCC ENVIRONMENT SERVICES (FOCSA),A00085,12+13,2018
Allerdale Borough Council,83605,,Waste Contract,New Bins Purchase,20/03/2019,429906,"11,854.08",MGB PLASTICS LTD,A01301,12+13,2018
Allerdale Borough Council,15102,Supplies & Services,Domestic Waste,Equipment Repair & Maintenance,06/03/2019,429907,233.00,Redacted information - included personal information ,A00176,12+13,2018
Allerdale Borough Council,12101,Premises,Multi Storey Car Park Utilities & Maint,External Maintenance & Decoration,06/03/2019,429908,880.00,Redacted information - included personal information ,C00008,12+13,2018
Allerdale Borough Council,12201,Premises,Corporate Property Maintenance,Internal Maintenance,13/03/2019,429909,581.70,RAFFERTY DECORATING SERVICES LTD,C00117,12+13,2018
Allerdale Borough Council,16302,Supplies & Services,Licensing Service,Room Hire,06/03/2019,429910,24.00,KESWICK TOWN COUNCIL,A00253,12+13,2018
Allerdale Borough Council,12301,Premises,MSCP Utilities & Maint fund,Security,06/03/2019,429911,"2,827.83",COMPASS SERVICES GROUP,A00839,12+13,2018
Allerdale Borough Council,10110,Employee Costs,Busy Bees Childcare Scheme,Salary Sacrifice,13/03/2019,429913,"1,953.00",COMPUTERSHARE VOUCHER SERVICES,A00991,12+13,2018
Allerdale Borough Council,10110,Employee Costs,Busy Bees Childcare Scheme,Salary Sacrifice,13/03/2019,429914,107.42,COMPUTERSHARE VOUCHER SERVICES,A00991,12+13,2018
Allerdale Borough Council,15401,Supplies & Services,Corporate Postage and Stationary,General Stationery,27/03/2019,429915,83.91,LYRECO,A00043,12+13,2018
Allerdale Borough Council,15401,Supplies & Services,Corporate Postage and Stationary,General Stationery,27/03/2019,429916,57.04,LYRECO,A00043,12+13,2018
Allerdale Borough Council,15401,Supplies & Services,Corporate Postage and Stationary,General Stationery,27/03/2019,429917,6.00,LYRECO,A00043,12+13,2018
Allerdale Borough Council,15401,Supplies & Services,Corporate Postage and Stationary,General Stationery,27/03/2019,429918,960.29,LYRECO,A00043,12+13,2018
Allerdale Borough Council,15401,Supplies & Services,Corporate Postage and Stationary,General Stationery,27/03/2019,429919,26.00,LYRECO,A00043,12+13,2018
Allerdale Borough Council,15401,Supplies & Services,Corporate Postage and Stationary,General Stationery,27/03/2019,429920,96.19,LYRECO,A00043,12+13,2018
Allerdale Borough Council,15401,Supplies & Services,Corporate Postage and Stationary,General Stationery,27/03/2019,429921,411.79,LYRECO,A00043,12+13,2018
Allerdale Borough Council,15501,Supplies & Services,Homelessness,Consultants Fees,06/03/2019,429922,50.00,CASTLEGATE SURGERY,A01007,12+13,2018
Allerdale Borough Council,12101,Premises,Corporate Property Maintenance,External Maintenance & Decoration,13/03/2019,429923,"1,314.56",WORKINGTON TOWN COUNCIL,A01615,12+13,2018
Allerdale Borough Council,14104,Transport,Public Convenience Cleaning,Repairs & Maintenance,06/03/2019,429924,35.84,GOODFELLOW & SONS,A00031,12+13,2018
Allerdale Borough Council,16101,Supplies & Services,Planning and Development,Statutory Notices,20/03/2019,429925,330.75,NEWSQUEST MEDIA GROUP,A02348,12+13,2018
Allerdale Borough Council,16101,Supplies & Services,Planning and Development,Statutory Notices,20/03/2019,429926,373.27,NEWSQUEST MEDIA GROUP,A02348,12+13,2018
Allerdale Borough Council,54105,Capital Expenditure,Disabled Facilities Grants,Grants  Private Individuals (Capital),06/03/2019,429927,"2,190.00",DOLPHIN STAIRLIFTS CUMBRIA,X00107,12+13,2018
Allerdale Borough Council,54105,Capital Expenditure,Disabled Facilities Grants,Grants  Private Individuals (Capital),06/03/2019,429928,"3,407.56",PARTNERSHIP IN PROPERTY MANAGEMENT LTD,X00120,12+13,2018
Allerdale Borough Council,54105,Capital Expenditure,Cluster of Empty Homes,Grants  Private Individuals (Capital),06/03/2019,429929,"1,424.03",Redacted information - included personal information ,X00294,12+13,2018
Allerdale Borough Council,54105,Capital Expenditure,Cluster of Empty Homes,Grants  Private Individuals (Capital),06/03/2019,429930,"1,607.41",Redacted information - included personal information ,X00294,12+13,2018
Allerdale Borough Council,16102,Supplies & Services,Social Impact Investment Fund,Regeneration Initiatives,06/03/2019,429931,"6,182.35",INN AT THE BUSH LTD,M01582,12+13,2018
Allerdale Borough Council,15101,Supplies & Services,Homelessness,Equipment Costs,06/03/2019,429932,40.78,ALLERDALE BOROUGH COUNCIL,X00034,12+13,2018
Allerdale Borough Council,15804,Supplies & Services,IT Services,Computer Data Lines B.T.,06/03/2019,429933,45.00,VAIONI GROUP LTD,A02471,12+13,2018
Allerdale Borough Council,15904,Supplies & Services,Members Services,Training,06/03/2019,429934,"1,165.88",Redacted information - included personal information ,A02529,12+13,2018
Allerdale Borough Council,15601,Supplies & Services,Electoral Registration,Postage,06/03/2019,429935,233.28,ROYAL MAIL LETTERS,X00021,12+13,2018
Allerdale Borough Council,15101,Supplies & Services,Bereavement Services,Equipment Costs,20/03/2019,429936,9.47,BARCLAYCARD COMMERCIAL ,X00207,12+13,2018
Allerdale Borough Council,16300,Supplies & Services,Sports Development,Budget-Miscellaneous,26/03/2019,429937,185.73,BARCLAYCARD COMMERCIAL ,X00207,12+13,2018
Allerdale Borough Council,72104,Holding and Control Accounts,Debtor Control Account,Debtors (Control Account),13/03/2019,429938,59.00,HBN RESTAURANTS LTD,M01208,12+13,2018
Allerdale Borough Council,21150,Transfer Payments,Environmental Initiatives,General Grants,13/03/2019,429939,"2,000.00",SILLOTH TOWN COUNCIL,A00615,12+13,2018
Allerdale Borough Council,15808,Supplies & Services,IT Services,Computer Consumables,27/03/2019,429940,44.93,MILLGATE LIMITED,A02314,12+13,2018
Allerdale Borough Council,53102,Not Applicable,Waste Contract,Purchase of Vehicles & Moveable Plant,13/03/2019,429941,670.00,DENNIS EAGLE LIMITED,A02608,12+13,2018
Allerdale Borough Council,16350,Supplies & Services,Mayoral Services,Miscellaneous Expenses,13/03/2019,429942,145.00,JIM DAVIS PHOTOGRAPHY,A00627,12+13,2018
Allerdale Borough Council,15813,Supplies & Services,IT Services,Software Miscellaneous,20/03/2019,429943,250.00,LANDMARK INFORMATION GROUP LTD,A00813,12+13,2018
Allerdale Borough Council,83605,,Waste Contract,New Bins Purchase,27/03/2019,429944,"12,175.80",CORAL PRODUCTS,A02625,12+13,2018
Allerdale Borough Council,15508,Supplies & Services,Corporate Improvement Team,Subscriptions,27/03/2019,429945,975.00,IMPROVEMENT & DEVELOPMENT AGENCY,A00484,12+13,2018
Allerdale Borough Council,14150,Transport,Gates Travel,General-Council Vehicles (Non-Capital),27/03/2019,429946,"2,105.10",GATES TRAVEL,A01525,12+13,2018
Allerdale Borough Council,15506,Supplies & Services,Communications and Marketing,Professional Services,03/04/2019,429947,"3,250.00",MICHAEL CARDER LTD,A02493,12+13,2018
Allerdale Borough Council,15101,Supplies & Services,Corporate Property Maintenance,Equipment Costs,13/03/2019,429948,540.00,CENTRIC OFFICE SOLUTIONS,A00065,12+13,2018
Allerdale Borough Council,15501,Supplies & Services,Major Contract Procurement,Consultants Fees,13/03/2019,429949,"16,004.78",BEVAN BRITTAN LLP,A02181,12+13,2018
Allerdale Borough Council,16302,Supplies & Services,Museums,Room Hire,27/03/2019,429950,"1,500.00",ARTLINK TRANSPORT & STORAGE LTD,A02362,12+13,2018
Allerdale Borough Council,15501,Supplies & Services,Environmental Initiatives,Consultants Fees,27/03/2019,429951,400.00,LEEMING ASSOCIATES,A02264,12+13,2018
Allerdale Borough Council,20150,Third Party Payments,Corporate Property Maintenance,General Partnership Service Fees,10/04/2019,429952,271.14,ORIAN SOLUTIONS LTD,A01814,12+13,2018
Allerdale Borough Council,12101,Premises,Coastal Protection and Inland Flooding,External Maintenance & Decoration,13/03/2019,429953,585.00,ASHCROFT DEMOLITION (CUMBRIA) LTD,C00197,12+13,2018
Allerdale Borough Council,12101,Premises,Multi Storey Car Park Utilities & Maint,External Maintenance & Decoration,13/03/2019,429954,110.00,NT CLEANERS LTD,A01350,12+13,2018
Allerdale Borough Council,10600,Employee Costs,Homelessness,Budget-Training,20/03/2019,429955,692.90,Redacted information - included personal information ,A02545,12+13,2018
Allerdale Borough Council,16300,Supplies & Services,Economic Regeneration,Budget-Miscellaneous,13/03/2019,429956,96.00,HER CITI,A00441,12+13,2018
Allerdale Borough Council,15508,Supplies & Services,Economic Regeneration,Subscriptions,13/03/2019,429957,599.00,THE INSTITUTE OF ECONOMIC DEVELOPMENT,A02308,12+13,2018
Allerdale Borough Council,15501,Supplies & Services,Building Control - Non-Chargeable,Consultants Fees,13/03/2019,429958,373.00,ASHCROFT DEMOLITION (CUMBRIA) LTD,C00197,12+13,2018
Allerdale Borough Council,12101,Premises,Corporate Property Maintenance,External Maintenance & Decoration,13/03/2019,429959,"1,063.00",ASHCROFT DEMOLITION (CUMBRIA) LTD,C00197,12+13,2018
Allerdale Borough Council,15501,Supplies & Services,Building Control - Non-Chargeable,Consultants Fees,13/03/2019,429960,207.00,ASHCROFT DEMOLITION (CUMBRIA) LTD,C00197,12+13,2018
Allerdale Borough Council,20150,Third Party Payments,Footways,General Partnership Service Fees,13/03/2019,429961,"6,140.09",CUMBRIA CC,A00066,12+13,2018
Allerdale Borough Council,12201,Premises,Multi Storey Car Park Utilities & Maint,Internal Maintenance,13/03/2019,429962,352.00,Redacted information - included personal information ,C00008,12+13,2018
Allerdale Borough Council,14104,Transport,Off-street - Owned,Repairs & Maintenance,13/03/2019,429963,"1,015.00",FIRPRESS PRINTERS,A00063,12+13,2018
Allerdale Borough Council,14104,Transport,Off-street - Owned,Repairs & Maintenance,13/03/2019,429964,350.00,FIRPRESS PRINTERS,A00063,12+13,2018
Allerdale Borough Council,10114,Employee Costs,"Business Support Unit, Devt Services",Agency to Cover Established Post,13/03/2019,429965,594.94,ADECCO RECRUITMENT,A00188,12+13,2018
Allerdale Borough Council,12101,Premises,Corporate Property Maintenance,External Maintenance & Decoration,27/03/2019,429966,8.54,FAST KEY SERVICES LTD,A01537,12+13,2018
Allerdale Borough Council,12307,Premises,Corporate Property Maintenance,Fixtures and Fittings,27/03/2019,429967,146.37,THYSSENKRUPP ELEVATOR UK LTD,C00072,12+13,2018
Allerdale Borough Council,15704,Supplies & Services,IT Services,Mobile Phones,13/03/2019,429968,47.91,VODAFONE ,A00551,12+13,2018
Allerdale Borough Council,15804,Supplies & Services,IT Services,Computer Data Lines B.T.,13/03/2019,429969,870.63,VODAFONE,A00934,12+13,2018
Allerdale Borough Council,15804,Supplies & Services,IT Services,Computer Data Lines B.T.,27/03/2019,429970,870.63,VODAFONE,A00934,12+13,2018
Allerdale Borough Council,12408,Premises,Corporate Property Maintenance,Water & Sewage,13/03/2019,429971,67.44,SCOTTISH WATER BUSINESS STREAM LTD,X00271,12+13,2018
Allerdale Borough Council,10401,Employee Costs,Environmental Protection,Agency Staff Costs,27/03/2019,429972,258.40,HAYS SPECIALIST RECRUITMENT LTD,A00280,12+13,2018
Allerdale Borough Council,10401,Employee Costs,Environmental Protection,Agency Staff Costs,13/03/2019,429973,975.00,G2 RECRUITMENT SOLUTIONS LTD,C00198,12+13,2018
Allerdale Borough Council,15506,Supplies & Services,Legal Services,Professional Services,27/03/2019,429974,87.50,FREETH CARTWRIGHT LLP,A01821,12+13,2018
Allerdale Borough Council,15104,Supplies & Services,Bereavement Services,Supplies for Resale,20/03/2019,429975,72.00,GRANART,A00644,12+13,2018
Allerdale Borough Council,15104,Supplies & Services,Bereavement Services,Supplies for Resale,20/03/2019,429976,185.00,GRANART,A00644,12+13,2018
Allerdale Borough Council,10202,Employee Costs,Human Resources Pay Group,Medical Screening,13/03/2019,429977,35.00,FIT2WORK LTD,A02603,12+13,2018
Allerdale Borough Council,12403,Premises,Homelessness,Gas,13/03/2019,429978,102.00,CASTLES & COASTS HOUSING ASSOCIATION LTD,A02465,12+13,2018
Allerdale Borough Council,15501,Supplies & Services,,Consultants Fees,13/03/2019,429979,"3,047.99",WALTON GOODLAND LTD,A01226,12+13,2018
Allerdale Borough Council,15506,Supplies & Services,Environmental Protection,Professional Services,20/03/2019,429980,"2,460.82",UNITED UTILITIES PLC,A01657,12+13,2018
Allerdale Borough Council,16001,Supplies & Services,Banking and Interest,Bank Charges and Fees,13/03/2019,429981,15.82,ALLPAY.NET LIMITED,A00714,12+13,2018
Allerdale Borough Council,16001,Supplies & Services,Banking and Interest,Bank Charges and Fees,13/03/2019,429982,16.72,ALLPAY.NET LIMITED,A00714,12+13,2018
Allerdale Borough Council,16001,Supplies & Services,Banking and Interest,Bank Charges and Fees,13/03/2019,429983,20.28,ALLPAY.NET LIMITED,A00714,12+13,2018
Allerdale Borough Council,16001,Supplies & Services,Banking and Interest,Bank Charges and Fees,13/03/2019,429984,19.84,ALLPAY.NET LIMITED,A00714,12+13,2018
Allerdale Borough Council,16001,Supplies & Services,Banking and Interest,Bank Charges and Fees,13/03/2019,429985,17.61,ALLPAY.NET LIMITED,A00714,12+13,2018
Allerdale Borough Council,16001,Supplies & Services,Banking and Interest,Bank Charges and Fees,13/03/2019,429986,31.91,ALLPAY.NET LIMITED,A00714,12+13,2018
Allerdale Borough Council,16001,Supplies & Services,Banking and Interest,Bank Charges and Fees,13/03/2019,429987,15.82,ALLPAY.NET LIMITED,A00714,12+13,2018
Allerdale Borough Council,16001,Supplies & Services,Banking and Interest,Bank Charges and Fees,13/03/2019,429988,27.35,ALLPAY.NET LIMITED,A00714,12+13,2018
Allerdale Borough Council,16001,Supplies & Services,Banking and Interest,Bank Charges and Fees,13/03/2019,429989,516.53,ALLPAY.NET LIMITED,A00714,12+13,2018
Allerdale Borough Council,16001,Supplies & Services,Banking and Interest,Bank Charges and Fees,13/03/2019,429990,50.31,ALLPAY.NET LIMITED,A00714,12+13,2018
Allerdale Borough Council,26000,Earmarked Reserves,Licensing Service,Budget-Expd funded from Reserve,13/03/2019,429991,488.56,ADECCO RECRUITMENT,A00188,12+13,2018
Allerdale Borough Council,26000,Earmarked Reserves,Transfer of Land Charges Data,Budget-Expd funded from Reserve,13/03/2019,429992,583.12,ADECCO RECRUITMENT,A00188,12+13,2018
Allerdale Borough Council,26000,Earmarked Reserves,Transfer of Land Charges Data,Budget-Expd funded from Reserve,13/03/2019,429993,583.12,ADECCO RECRUITMENT,A00188,12+13,2018
Allerdale Borough Council,21150,Transfer Payments,Community Housing Fund,General Grants,13/03/2019,429994,"50,000.00",ABOVE DERWENT COMMUNITY LAND TRUST LTD,A02519,12+13,2018
Allerdale Borough Council,16350,Supplies & Services,Leaders Portfolio,Miscellaneous Expenses,13/03/2019,429995,250.00,Redacted information - included personal information ,M01583,12+13,2018
Allerdale Borough Council,15201,Supplies & Services,Leaders Services,Entertainment Of Visitors,13/03/2019,429996,66.90,ALLERDALE BOROUGH COUNCIL,X00034,12+13,2018
Allerdale Borough Council,15100,Supplies & Services,Mayoral Services,"Budget-Equipment, Furniture & Materials",13/03/2019,429997,"1,616.08",FLUID PRODUCTIONS LIMITED,A02009,12+13,2018
Allerdale Borough Council,14101,Transport,Mayoral Services,Vehicle Leasing,13/03/2019,429998,80.00,DJH SILLOTH LTD T/A SOLWAY PRIVATE HIRE,M00890,12+13,2018
Allerdale Borough Council,15506,Supplies & Services,Corporate Improvement Team,Professional Services,27/03/2019,429999,16.20,LANGUAGE LINE SERVICES,A00018,12+13,2018
Allerdale Borough Council,10401,Employee Costs,Environmental Protection,Agency Staff Costs,03/04/2019,430000,258.40,HAYS SPECIALIST RECRUITMENT LTD,A00280,12+13,2018
Allerdale Borough Council,16300,Supplies & Services,Tourism Incentive,Budget-Miscellaneous,13/03/2019,430001,100.00,HER CITI,A00441,12+13,2018
Allerdale Borough Council,15402,Supplies & Services,Multi-functional Printers,Photocopier Charges,13/03/2019,430002,14.02,KONICA MINOLTA BUSINESS SOLUTIONS UK LTD,A01556,12+13,2018
Allerdale Borough Council,53102,Not Applicable,Waste Contract,Purchase of Vehicles & Moveable Plant,13/03/2019,430003,"152,990.00",DENNIS EAGLE LIMITED,A02608,12+13,2018
Allerdale Borough Council,10501,Employee Costs,Workington Nature Partnership,Advertising Vacancies,03/04/2019,430004,199.00,WORKING PLANET LIMITED,A02017,12+13,2018
Allerdale Borough Council,10601,Employee Costs,Training,External Courses & Seminar Fees,03/04/2019,430005,358.00,THE WHITE PAPER CONFERENCE CO,A00780,12+13,2018
Allerdale Borough Council,15811,Supplies & Services,IT Services,Software Maintenance,03/04/2019,430006,119.14,PHOENIX SOFTWARE LTD,A00229,12+13,2018
Allerdale Borough Council,15811,Supplies & Services,IT Services,Software Maintenance,03/04/2019,430007,105.77,PHOENIX SOFTWARE LTD,A00229,12+13,2018
Allerdale Borough Council,15102,Supplies & Services,Members Services,Equipment Repair & Maintenance,03/04/2019,430008,"3,920.00",NUWAY AUDIO VISUAL LTD,C00131,12+13,2018
Allerdale Borough Council,12101,Premises,Corporate Property Maintenance,External Maintenance & Decoration,13/03/2019,430009,"1,358.00",G H CHAMBERS & SON,C00030,12+13,2018
Allerdale Borough Council,15102,Supplies & Services,Food and Occupational Health,Equipment Repair & Maintenance,03/04/2019,430010,98.00,KLIPSPRINGER LTD,A01199,12+13,2018
Allerdale Borough Council,15810,Supplies & Services,IT Services,Software Licences,20/03/2019,430011,"5,495.25",HELPSYSTEMS,A02638,12+13,2018
Allerdale Borough Council,83605,,Waste Contract,New Bins Purchase,20/03/2019,430012,"11,854.08",MGB PLASTICS LTD,A01301,12+13,2018
Allerdale Borough Council,83605,,Waste Contract,New Bins Purchase,20/03/2019,430013,"11,854.08",MGB PLASTICS LTD,A01301,12+13,2018
Allerdale Borough Council,83605,,Waste Contract,New Bins Purchase,27/03/2019,430014,"11,854.08",MGB PLASTICS LTD,A01301,12+13,2018
Allerdale Borough Council,83605,,Waste Contract,New Bins Purchase,27/03/2019,430015,"11,854.08",MGB PLASTICS LTD,A01301,12+13,2018
Allerdale Borough Council,83605,,Waste Contract,New Bins Purchase,20/03/2019,430016,"11,854.08",MGB PLASTICS LTD,A01301,12+13,2018
Allerdale Borough Council,83605,,Waste Contract,New Bins Purchase,27/03/2019,430017,"11,854.08",MGB PLASTICS LTD,A01301,12+13,2018
Allerdale Borough Council,83605,,Waste Contract,New Bins Purchase,27/03/2019,430018,"11,854.08",MGB PLASTICS LTD,A01301,12+13,2018
Allerdale Borough Council,83605,,Waste Contract,New Bins Purchase,27/03/2019,430019,"11,854.08",MGB PLASTICS LTD,A01301,12+13,2018
Allerdale Borough Council,83605,,Waste Contract,New Bins Purchase,27/03/2019,430020,"16,496.76",MGB PLASTICS LTD,A01301,12+13,2018
Allerdale Borough Council,15101,Supplies & Services,Off-street - Owned,Equipment Costs,20/03/2019,430021,120.77,RELIANCE HIGH-TECH LTD,C00123,12+13,2018
Allerdale Borough Council,16350,Supplies & Services,Off-street - Owned,Miscellaneous Expenses,27/03/2019,430022,836.25,3C PAYMENT LIMITED,A02382,12+13,2018
Allerdale Borough Council,83605,,Waste Contract,New Bins Purchase,03/04/2019,430023,"11,854.08",MGB PLASTICS LTD,A01301,12+13,2018
Allerdale Borough Council,83605,,Waste Contract,New Bins Purchase,03/04/2019,430024,"11,854.08",MGB PLASTICS LTD,A01301,12+13,2018
Allerdale Borough Council,15506,Supplies & Services,Banking and Interest,Professional Services,13/03/2019,430025,"3,789.47",BLOOM PROCUREMENT SERVICES LTD,A02360,12+13,2018
Allerdale Borough Council,10601,Employee Costs,Training,External Courses & Seminar Fees,13/03/2019,430026,69.86,ENTERPRISE RENT A CAR,A01367,12+13,2018
Allerdale Borough Council,15101,Supplies & Services,Workington Nature Partnership,Equipment Costs,27/03/2019,430027,493.13,TUDOR (UK) LTD,A02630,12+13,2018
Allerdale Borough Council,15101,Supplies & Services,Off-street - Owned,Equipment Costs,20/03/2019,430028,70.07,RELIANCE HIGH-TECH LTD,C00123,12+13,2018
Allerdale Borough Council,10114,Employee Costs,"Business Support Unit, Devt Services",Agency to Cover Established Post,13/03/2019,430029,547.66,ADECCO RECRUITMENT,A00188,12+13,2018
Allerdale Borough Council,15850,Supplies & Services,Solway Coast AONB Core Funding,General Computer Costs,13/03/2019,430030,"2,453.33",BLOOM PROCUREMENT SERVICES LTD,A02360,12+13,2018
Allerdale Borough Council,15101,Supplies & Services,Public Building Cleaning,Equipment Costs,03/04/2019,430031,80.35,KELTIC,A00017,12+13,2018
Allerdale Borough Council,10401,Employee Costs,Rogue Landlord Enforcement,Agency Staff Costs,13/03/2019,430032,"1,587.38",G2 RECRUITMENT SOLUTIONS LTD,C00198,12+13,2018
Allerdale Borough Council,12402,Premises,Car Parks Inspection & Maintenance,Electricity,13/03/2019,430033,90.93,N POWER ,X00015,12+13,2018
Allerdale Borough Council,15203,Supplies & Services,Mayoral Services,Catering Costs and Consumables,13/03/2019,430037,154.61,THORNBY MOOR DAIRY LTD,A02636,12+13,2018
Allerdale Borough Council,54105,Capital Expenditure,Discretionary Grants,Grants  Private Individuals (Capital),13/03/2019,430038,"12,742.06",PARTNERSHIP IN PROPERTY MANAGEMENT LTD,X00120,12+13,2018
Allerdale Borough Council,54105,Capital Expenditure,Discretionary Grants,Grants  Private Individuals (Capital),13/03/2019,430039,"1,531.61",W W BUILDERS LIMITED,X00212,12+13,2018
Allerdale Borough Council,20108,Third Party Payments,Corporate Management,Audit Fees,27/03/2019,430040,"9,264.75",GRANT THORNTON UK LLP,A01736,12+13,2018
Allerdale Borough Council,10601,Employee Costs,Training,External Courses & Seminar Fees,13/03/2019,430041,300.00,SAGE (UK) LTD ,A01911,12+13,2018
Allerdale Borough Council,33104,Income,Bereavement Services,Cemetery Granting of Burial Right Income,20/03/2019,430042,100.00,Redacted information - included personal information ,M01584,12+13,2018
Allerdale Borough Council,15203,Supplies & Services,Finance and Accounting Pay Group,Catering Costs and Consumables,20/03/2019,430043,42.00,AL'S KITCHEN LTD,A00187,12+13,2018
Allerdale Borough Council,83605,,Waste Contract,New Bins Purchase,27/03/2019,430044,"11,854.08",MGB PLASTICS LTD,A01301,12+13,2018
Allerdale Borough Council,83605,,Waste Contract,New Bins Purchase,03/04/2019,430045,"11,854.08",MGB PLASTICS LTD,A01301,12+13,2018
Allerdale Borough Council,21150,Transfer Payments,Environmental Initiatives,General Grants,20/03/2019,430046,"1,500.00",CUMBRIA CC ,A00066,12+13,2018
Allerdale Borough Council,16102,Supplies & Services,Economic Regeneration,Regeneration Initiatives,20/03/2019,430047,"10,000.00",SUSTRANS LIMITED,A00490,12+13,2018
Allerdale Borough Council,16100,Supplies & Services,Legal Services,Budget-Advertising and Promotions,20/03/2019,430048,472.50,NEWSQUEST MEDIA GROUP,A02348,12+13,2018
Allerdale Borough Council,14202,Transport,Internal Audit Pay Group,Hire Car and petrol,20/03/2019,430049,34.95,ENTERPRISE RENT A CAR,A01367,12+13,2018
Allerdale Borough Council,20305,Third Party Payments,Maryport Wave,Contract Services-Leisure Centres,20/03/2019,430050,"15,581.74",GREENWICH LEISURE LTD,A00136,12+13,2018
Allerdale Borough Council,20305,Third Party Payments,Sports & Leisure Centres,Contract Services-Leisure Centres,20/03/2019,430051,"51,050.00",GREENWICH LEISURE LTD,A00136,12+13,2018
Allerdale Borough Council,12101,Premises,Coastal Protection and Inland Flooding,External Maintenance & Decoration,20/03/2019,430052,"7,743.00",THOMAS ARMSTRONG - CONSTRUCTION,C00003,12+13,2018
Allerdale Borough Council,16300,Supplies & Services,Off-street - Owned,Budget-Miscellaneous,27/03/2019,430053,414.48,COBALT TELEPHONE TECHNOLOGY,A01008,12+13,2018
Allerdale Borough Council,12402,Premises,Footways,Electricity,20/03/2019,430054,"5,323.21",N POWER ,X00015,12+13,2018
Allerdale Borough Council,12402,Premises,Homelessness,Electricity,20/03/2019,430055,21.24,OPUS ENERGY,X00226,12+13,2018
Allerdale Borough Council,12402,Premises,Homelessness,Electricity,20/03/2019,430056,12.55,OPUS ENERGY,X00226,12+13,2018
Allerdale Borough Council,12402,Premises,Homelessness,Electricity,20/03/2019,430057,18.25,OPUS ENERGY,X00226,12+13,2018
Allerdale Borough Council,12402,Premises,Homelessness,Electricity,20/03/2019,430058,21.95,OPUS ENERGY,X00226,12+13,2018
Allerdale Borough Council,12402,Premises,Homelessness,Electricity,20/03/2019,430059,23.52,OPUS ENERGY,X00226,12+13,2018
Allerdale Borough Council,12402,Premises,Homelessness,Electricity,20/03/2019,430060,30.23,OPUS ENERGY,X00226,12+13,2018
Allerdale Borough Council,12402,Premises,Homelessness,Electricity,20/03/2019,430061,19.95,OPUS ENERGY,X00226,12+13,2018
Allerdale Borough Council,12402,Premises,Corporate Property Maintenance,Electricity,20/03/2019,430062,567.72,N POWER ,X00015,12+13,2018
Allerdale Borough Council,12101,Premises,Corporate Property Maintenance,External Maintenance & Decoration,20/03/2019,430063,443.00,ASHCROFT DEMOLITION (CUMBRIA) LTD,C00197,12+13,2018
Allerdale Borough Council,15506,Supplies & Services,Food and Occupational Health,Professional Services,20/03/2019,430064,"15,189.00",HOLDENS SOLICITORS,A02420,12+13,2018
Allerdale Borough Council,15506,Supplies & Services,Universal Credit,Professional Services,20/03/2019,430065,360.00,IMPACT HOUSING ASSOCIATION LTD,A00236,12+13,2018
Allerdale Borough Council,15506,Supplies & Services,Reedlands Road Industrial Development,Professional Services,20/03/2019,430066,"8,374.00",PERFECT CIRCLE JV LTD,A02478,12+13,2018
Allerdale Borough Council,15508,Supplies & Services,Planning and Development,Subscriptions,10/04/2019,430067,200.00,PLANNING JUNGLE LTD,A02641,12+13,2018
Allerdale Borough Council,12201,Premises,Homelessness,Internal Maintenance,20/03/2019,430068,78.70,CUMBRIA SUPERGLAZE,A00982,12+13,2018
Allerdale Borough Council,12201,Premises,Homelessness,Internal Maintenance,20/03/2019,430069,44.60,CUMBRIA SUPERGLAZE,A00982,12+13,2018
Allerdale Borough Council,15401,Supplies & Services,Planning and Development,General Stationery,20/03/2019,430070,144.04,STORM TECHNOLOGIES,A01018,12+13,2018
Allerdale Borough Council,10401,Employee Costs,Rogue Landlord Enforcement,Agency Staff Costs,20/03/2019,430071,"1,535.50",G2 RECRUITMENT SOLUTIONS LTD,C00198,12+13,2018
Allerdale Borough Council,15101,Supplies & Services,Health and Safety,Equipment Costs,03/04/2019,430072,140.15,SETON,A01435,12+13,2018
Allerdale Borough Council,16100,Supplies & Services,Communications and Marketing,Budget-Advertising and Promotions,20/03/2019,430073,160.00,EWANRIGG LOCAL TRUST,R00024,12+13,2018
Allerdale Borough Council,15405,Supplies & Services,Planning Policy,Use of External Printers,20/03/2019,430074,"1,200.00",FIRPRESS PRINTERS,A00063,12+13,2018
Allerdale Borough Council,12101,Premises,Coastal Protection and Inland Flooding,External Maintenance & Decoration,03/04/2019,430075,755.00,SEFTON COUNCIL,A01521,12+13,2018
Allerdale Borough Council,15506,Supplies & Services,Reedlands Road Industrial Development,Professional Services,03/04/2019,430076,"11,627.69",PERFECT CIRCLE JV LTD,A02478,12+13,2018
Allerdale Borough Council,15501,Supplies & Services,Revenue,Consultants Fees,20/03/2019,430077,75.00,ROSSENDALES LTD,A00964,12+13,2018
Allerdale Borough Council,21150,Transfer Payments,Festivals & Events,General Grants,20/03/2019,430078,767.50,CARNEGIE THEATRE TRUST,R00015,12+13,2018
Allerdale Borough Council,16302,Supplies & Services,Rogue Landlord Enforcement,Room Hire,20/03/2019,430079,335.50,ST MICHAELS CHURCH WORKINGTON LTD,A00255,12+13,2018
Allerdale Borough Council,33112,Income,Planning and Development,Planning Fees Income,20/03/2019,430080,34.00,Redacted information - included personal information ,M01585,12+13,2018
Allerdale Borough Council,33112,Income,Planning and Development,Planning Fees Income,20/03/2019,430081,118.00,Redacted information - included personal information ,A01552,12+13,2018
Allerdale Borough Council,33112,Income,Planning and Development,Planning Fees Income,20/03/2019,430082,"1,060.00",HOME GROUP LTD,M01586,12+13,2018
Allerdale Borough Council,50000,Capital Expenditure,Highfield Community Centre,Capital Programme,20/03/2019,430083,"34,000.00",COCKERMOUTH TITANS ARLFC,M01587,12+13,2018
Allerdale Borough Council,21150,Transfer Payments,Festivals & Events,General Grants,20/03/2019,430084,110.00,KESWICK VICTORIAN FAYRE,M00620,12+13,2018
Allerdale Borough Council,26000,Earmarked Reserves,Festivals & Community Events,Budget-Expd funded from Reserve,20/03/2019,430085,"2,640.00",WORKINGTON ASC,M01588,12+13,2018
Allerdale Borough Council,26000,Earmarked Reserves,Festivals & Community Events,Budget-Expd funded from Reserve,20/03/2019,430086,200.00,COCKERMOUTH SWIMMING CLUB,M00527,12+13,2018
Allerdale Borough Council,26000,Earmarked Reserves,Festivals & Community Events,Budget-Expd funded from Reserve,20/03/2019,430087,300.00,THOMLINSON JUNIOR SCHOOL,M01589,12+13,2018
Allerdale Borough Council,15101,Supplies & Services,2019 Elections,Equipment Costs,27/03/2019,430088,"2,490.00",SCARBOROUGH BOROUGH COUNCIL,A02634,12+13,2018
Allerdale Borough Council,15404,Supplies & Services,Legal Services,Reference Materials,27/03/2019,430089,401.00,SWEET & MAXWELL (THOMSON REUTERS),A00028,12+13,2018
Allerdale Borough Council,15401,Supplies & Services,Licensing Service,General Stationery,20/03/2019,430090,388.00,FIRPRESS PRINTERS,A00063,12+13,2018
Allerdale Borough Council,15507,Supplies & Services,Land Charges Service,Searches,20/03/2019,430091,"1,948.80",CUMBRIA CC ,A00066,12+13,2018
Allerdale Borough Council,26000,Earmarked Reserves,Transfer of Land Charges Data,Budget-Expd funded from Reserve,20/03/2019,430092,583.12,ADECCO RECRUITMENT,A00188,12+13,2018
Allerdale Borough Council,26000,Earmarked Reserves,Transfer of Land Charges Data,Budget-Expd funded from Reserve,20/03/2019,430093,547.66,ADECCO RECRUITMENT,A00188,12+13,2018
Allerdale Borough Council,12101,Premises,Public Convenience Cleaning,External Maintenance & Decoration,20/03/2019,430094,862.00,S K DRAINAGE SOLUTIONS LTD,A02612,12+13,2018
Allerdale Borough Council,26000,Earmarked Reserves,Licensing Service,Budget-Expd funded from Reserve,20/03/2019,430095,354.60,ADECCO RECRUITMENT,A00188,12+13,2018
Allerdale Borough Council,10202,Employee Costs,Human Resources Pay Group,Medical Screening,27/03/2019,430096,240.00,Redacted information - included personal information ,A02594,12+13,2018
Allerdale Borough Council,12305,Premises,Corporate Property Maintenance,Inspections and Services,10/04/2019,430097,"2,149.81",DORMA UK LTD,A01349,12+13,2018
Allerdale Borough Council,15101,Supplies & Services,Public Convenience Cleaning,Equipment Costs,20/03/2019,430098,159.24,WF HYGIENE & CLEANING SUPPLIES,A01794,12+13,2018
Allerdale Borough Council,12101,Premises,Multi Storey Car Park Utilities & Maint,External Maintenance & Decoration,20/03/2019,430099,421.00,Redacted information - included personal information ,C00008,12+13,2018
Allerdale Borough Council,54105,Capital Expenditure,Disabled Facilities Grants,Grants  Private Individuals (Capital),20/03/2019,430100,"9,032.00",K BAILIFF & SON LIMITED,X00116,12+13,2018
Allerdale Borough Council,54105,Capital Expenditure,Discretionary Grants,Grants  Private Individuals (Capital),20/03/2019,430101,"10,114.21",L.E.A. BUILDING SERVICES LTD,X00264,12+13,2018
Allerdale Borough Council,54105,Capital Expenditure,Disabled Facilities Grants,Grants  Private Individuals (Capital),20/03/2019,430102,"2,004.38",DOLPHIN STAIRLIFTS CUMBRIA,X00107,12+13,2018
Allerdale Borough Council,54105,Capital Expenditure,Disabled Facilities Grants,Grants  Private Individuals (Capital),20/03/2019,430103,"5,146.00",MAYSON BROS LTD,X00132,12+13,2018
Allerdale Borough Council,54105,Capital Expenditure,Disabled Facilities Grants,Grants  Private Individuals (Capital),20/03/2019,430104,"2,830.87",PARTNERSHIP IN PROPERTY MANAGEMENT LTD,X00120,12+13,2018
Allerdale Borough Council,54105,Capital Expenditure,Disabled Facilities Grants,Grants  Private Individuals (Capital),20/03/2019,430105,"2,783.40",PARTNERSHIP IN PROPERTY MANAGEMENT LTD,X00120,12+13,2018
Allerdale Borough Council,54105,Capital Expenditure,Disabled Facilities Grants,Grants  Private Individuals (Capital),20/03/2019,430106,"2,748.58",PARTNERSHIP IN PROPERTY MANAGEMENT LTD,X00120,12+13,2018
Allerdale Borough Council,20150,Third Party Payments,Managed Car Parks,General Partnership Service Fees,20/03/2019,430107,"11,576.90",KESWICK MINISTRIES,A02390,12+13,2018
Allerdale Borough Council,16350,Supplies & Services,Leaders Portfolio,Miscellaneous Expenses,27/03/2019,430108,"5,000.00",WIGTON THEATRE CLUB,M00715,12+13,2018
Allerdale Borough Council,16300,Supplies & Services,Tourism Incentive,Budget-Miscellaneous,20/03/2019,430109,260.00,CLICKING LOCAL,A02633,12+13,2018
Allerdale Borough Council,15203,Supplies & Services,Mayoral Services,Catering Costs and Consumables,20/03/2019,430110,"4,708.75",THE GREENHILL HOTEL,A00274,12+13,2018
Allerdale Borough Council,15803,Supplies & Services,ICT Infrastructure Costs,Hardware Purchase,03/04/2019,430111,397.20,PCM TECHNOLOGY SOLUTIONS UK LTD,A02526,12+13,2018
Allerdale Borough Council,15506,Supplies & Services,Universal Credit,Professional Services,20/03/2019,430112,100.00,CITIZENS ADVICE BUREAU,A01181,12+13,2018
Allerdale Borough Council,15803,Supplies & Services,ICT Infrastructure Costs,Hardware Purchase,03/04/2019,430113,"1,028.09",PCM TECHNOLOGY SOLUTIONS UK LTD,A02526,12+13,2018
Allerdale Borough Council,15803,Supplies & Services,ICT Infrastructure Costs,Hardware Purchase,03/04/2019,430114,"3,252.66",PCM TECHNOLOGY SOLUTIONS UK LTD,A02526,12+13,2018
Allerdale Borough Council,15803,Supplies & Services,IT Costs (Allerdale Only),Hardware Purchase,20/03/2019,430115,"1,561.18",STORM TECHNOLOGIES,A01018,12+13,2018
Allerdale Borough Council,15803,Supplies & Services,IT Costs (Allerdale Only),Hardware Purchase,20/03/2019,430116,"7,707.79",STORM TECHNOLOGIES,A01018,12+13,2018
Allerdale Borough Council,15803,Supplies & Services,IT Costs (Allerdale Only),Hardware Purchase,20/03/2019,430117,121.00,STORM TECHNOLOGIES,A01018,12+13,2018
Allerdale Borough Council,10401,Employee Costs,Environmental Protection,Agency Staff Costs,20/03/2019,430118,"1,003.13",G2 RECRUITMENT SOLUTIONS LTD,C00198,12+13,2018
Allerdale Borough Council,10114,Employee Costs,"Business Support Unit, Devt Services",Agency to Cover Established Post,20/03/2019,430119,591.00,ADECCO RECRUITMENT,A00188,12+13,2018
Allerdale Borough Council,15401,Supplies & Services,Revenue,General Stationery,20/03/2019,430120,358.03,CUMBRIA MAILING SERVICE,A00086,12+13,2018
Allerdale Borough Council,16100,Supplies & Services,Members Services,Budget-Advertising and Promotions,20/03/2019,430121,522.11,MCKANES PRINTERS,A01507,12+13,2018
Allerdale Borough Council,10110,Employee Costs,Commissioning Support Pay Group,Salary Sacrifice,20/03/2019,430122,"2,387.52",TUSKERDIRECT LTD,A02186,12+13,2018
Allerdale Borough Council,15704,Supplies & Services,IT Services,Mobile Phones,03/04/2019,430123,21.00,EE LIMITED,X00290,12+13,2018
Allerdale Borough Council,15703,Supplies & Services,IT Services,Call Charges,27/03/2019,430124,291.85,BRITISH TELECOM PLC,A00363,12+13,2018
Allerdale Borough Council,15703,Supplies & Services,IT Services,Call Charges,27/03/2019,430125,"1,184.67",BRITISH TELECOM PLC,A00363,12+13,2018
Allerdale Borough Council,12402,Premises,Corporate Property Maintenance,Electricity,20/03/2019,430126,"4,533.28",N POWER,X00015,12+13,2018
Allerdale Borough Council,12402,Premises,Multi Storey Car Park Utilities & Maint,Electricity,20/03/2019,430127,"1,872.68",N POWER ,X00015,12+13,2018
Allerdale Borough Council,12402,Premises,Corporate Property Maintenance,Electricity,20/03/2019,430128,"1,909.74",N POWER ,X00015,12+13,2018
Allerdale Borough Council,15601,Supplies & Services,Electoral Registration,Postage,20/03/2019,430129,46.90,ROYAL MAIL LETTERS,X00021,12+13,2018
Allerdale Borough Council,26000,Earmarked Reserves,Festivals & Community Events,Budget-Expd funded from Reserve,27/03/2019,430130,280.00,MODES USERS ASSOCIATION,A00796,12+13,2018
Allerdale Borough Council,16101,Supplies & Services,Planning and Development,Statutory Notices,03/04/2019,430131,472.50,NEWSQUEST MEDIA GROUP,A02348,12+13,2018
Allerdale Borough Council,16101,Supplies & Services,Planning and Development,Statutory Notices,03/04/2019,430132,355.50,NEWSQUEST MEDIA GROUP,A02348,12+13,2018
Allerdale Borough Council,20100,Third Party Payments,Emergency Planning,Budget-Partnership Services,20/03/2019,430133,"18,828.00",CUMBRIA CC ,A00066,12+13,2018
Allerdale Borough Council,15501,Supplies & Services,Building Control - Non-Chargeable,Consultants Fees,20/03/2019,430134,335.00,ASHCROFT DEMOLITION (CUMBRIA) LTD,C00197,12+13,2018
Allerdale Borough Council,15501,Supplies & Services,Building Control - Non-Chargeable,Consultants Fees,27/03/2019,430135,663.00,ASHCROFT DEMOLITION (CUMBRIA) LTD,C00197,12+13,2018
Allerdale Borough Council,12201,Premises,Corporate Property Maintenance,Internal Maintenance,27/03/2019,430136,450.00,RAFFERTY DECORATING SERVICES LTD,C00117,12+13,2018
Allerdale Borough Council,12303,Premises,Corporate Property Maintenance,Window Cleaning,20/03/2019,430137,405.00,BORDERBRITE LTD,C00155,12+13,2018
Allerdale Borough Council,12305,Premises,Corporate Property Maintenance,Inspections and Services,27/03/2019,430138,49.00,AQUAID (NORTH),A00123,12+13,2018
Allerdale Borough Council,12305,Premises,Corporate Property Maintenance,Inspections and Services,27/03/2019,430139,343.00,AQUAID (NORTH),A00123,12+13,2018
Allerdale Borough Council,12303,Premises,Corporate Property Maintenance,Window Cleaning,20/03/2019,430140,-50.00,BORDERBRITE LTD,C00155,12+13,2018
Allerdale Borough Council,12405,Premises,Homelessness,Rentals and Lease Charges,20/03/2019,430141,180.00,CUMBERLAND HOTEL,A02415,12+13,2018
Allerdale Borough Council,12405,Premises,Homelessness,Rentals and Lease Charges,20/03/2019,430142,360.00,CUMBERLAND HOTEL,A02415,12+13,2018
Allerdale Borough Council,12405,Premises,Homelessness,Rentals and Lease Charges,20/03/2019,430143,100.00,CUMBERLAND HOTEL,A02415,12+13,2018
Allerdale Borough Council,16100,Supplies & Services,Communications and Marketing,Budget-Advertising and Promotions,27/03/2019,430144,65.00,FIRPRESS PRINTERS,A00063,12+13,2018
Allerdale Borough Council,15101,Supplies & Services,Building Control - Chargeable,Equipment Costs,27/03/2019,430145,25.40,THOMAS ARMSTRONG,A00091,12+13,2018
Allerdale Borough Council,15803,Supplies & Services,ICT Infrastructure Costs,Hardware Purchase,03/04/2019,430146,"1,024.60",PCM TECHNOLOGY SOLUTIONS UK LTD,A02526,12+13,2018
Allerdale Borough Council,16300,Supplies & Services,Economic Regeneration,Budget-Miscellaneous,20/03/2019,430147,41.00,ST MICHAELS CHURCH WORKINGTON LTD,A00255,12+13,2018
Allerdale Borough Council,54105,Capital Expenditure,Cluster of Empty Homes,Grants  Private Individuals (Capital),20/03/2019,430148,"1,263.98",Redacted information - included personal information ,X00295,12+13,2018
Allerdale Borough Council,54105,Capital Expenditure,Healthy Homes,Grants  Private Individuals (Capital),20/03/2019,430149,"6,580.00",Redacted information - included personal information ,X00296,12+13,2018
Allerdale Borough Council,15400,Supplies & Services,Mayoral Services,"Budget-Printing,Stationery & Office Supp",27/03/2019,430150,70.00,FIRPRESS PRINTERS,A00063,12+13,2018
Allerdale Borough Council,20150,Third Party Payments,Footways,General Partnership Service Fees,10/04/2019,430151,926.00,ELECTRICITY NORTH WEST LTD,A00471,12+13,2018
Allerdale Borough Council,12101,Premises,Corporate Property Maintenance,External Maintenance & Decoration,20/03/2019,430152,"2,055.00",THE COMMUNITY HEARTBEAT SOLUTIONS LTD,A02642,12+13,2018
Allerdale Borough Council,15201,Supplies & Services,Director of Resources & PA,Entertainment Of Visitors,20/03/2019,430153,300.00,WORKINGTON AFC,M00532,12+13,2018
Allerdale Borough Council,14202,Transport,Chief Executive,Hire Car and petrol,20/03/2019,430154,133.73,ENTERPRISE RENT A CAR,A01367,12+13,2018
Allerdale Borough Council,15201,Supplies & Services,Leaders Services,Entertainment Of Visitors,20/03/2019,430155,64.35,AL'S KITCHEN LTD,A00187,12+13,2018
Allerdale Borough Council,14202,Transport,Chief Executive,Hire Car and petrol,27/03/2019,430156,205.82,ENTERPRISE RENT A CAR,A01367,12+13,2018
Allerdale Borough Council,14202,Transport,Chief Executive,Hire Car and petrol,20/03/2019,430157,142.91,ENTERPRISE RENT A CAR,A01367,12+13,2018
Allerdale Borough Council,12402,Premises,Public Convenience Cleaning,Electricity,20/03/2019,430158,19.44,N POWER,X00015,12+13,2018
Allerdale Borough Council,12402,Premises,Public Convenience Cleaning,Electricity,20/03/2019,430159,11.15,N POWER,X00015,12+13,2018
Allerdale Borough Council,12402,Premises,Public Convenience Cleaning,Electricity,20/03/2019,430160,129.77,N POWER,X00015,12+13,2018
Allerdale Borough Council,12402,Premises,Multi Storey Car Park Utilities & Maint,Electricity,20/03/2019,430161,6.44,N POWER,X00015,12+13,2018
Allerdale Borough Council,12402,Premises,Public Convenience Cleaning,Electricity,20/03/2019,430162,5.04,N POWER,X00015,12+13,2018
Allerdale Borough Council,12402,Premises,Corporate Property Maintenance,Electricity,20/03/2019,430163,-447.51,N POWER,X00015,12+13,2018
Allerdale Borough Council,12402,Premises,Corporate Property Maintenance,Electricity,20/03/2019,430164,101.75,N POWER,X00015,12+13,2018
Allerdale Borough Council,12402,Premises,Corporate Property Maintenance,Electricity,20/03/2019,430165,11.54,N POWER,X00015,12+13,2018
Allerdale Borough Council,12402,Premises,Corporate Property Maintenance,Electricity,20/03/2019,430166,32.56,N POWER,X00015,12+13,2018
Allerdale Borough Council,12402,Premises,Corporate Property Maintenance,Electricity,20/03/2019,430167,6.44,N POWER,X00015,12+13,2018
Allerdale Borough Council,12402,Premises,Corporate Property Maintenance,Electricity,20/03/2019,430168,141.22,N POWER,X00015,12+13,2018
Allerdale Borough Council,12402,Premises,Corporate Property Maintenance,Electricity,20/03/2019,430169,228.64,N POWER,X00015,12+13,2018
Allerdale Borough Council,12402,Premises,Corporate Property Maintenance,Electricity,20/03/2019,430170,5.04,N POWER,X00015,12+13,2018
Allerdale Borough Council,12402,Premises,Corporate Property Maintenance,Electricity,20/03/2019,430171,5.79,N POWER,X00015,12+13,2018
Allerdale Borough Council,12402,Premises,Public Convenience Cleaning,Electricity,20/03/2019,430172,21.73,N POWER,X00015,12+13,2018
Allerdale Borough Council,12402,Premises,Corporate Property Maintenance,Electricity,20/03/2019,430173,1.92,N POWER,X00015,12+13,2018
Allerdale Borough Council,12402,Premises,Public Convenience Cleaning,Electricity,20/03/2019,430174,2.52,N POWER,X00015,12+13,2018
Allerdale Borough Council,12402,Premises,Car Parks Inspection & Maintenance,Electricity,20/03/2019,430175,24.15,N POWER,X00015,12+13,2018
Allerdale Borough Council,12402,Premises,Multi Storey Car Park Utilities & Maint,Electricity,20/03/2019,430176,16.22,N POWER,X00015,12+13,2018
Allerdale Borough Council,12402,Premises,Corporate Property Maintenance,Electricity,20/03/2019,430177,48.57,N POWER,X00015,12+13,2018
Allerdale Borough Council,12101,Premises,Car Parks Inspection & Maintenance,External Maintenance & Decoration,27/03/2019,430178,"2,184.00",GORDON GRAHAM ROADMARKINGS LTD,C00165,12+13,2018
Allerdale Borough Council,35106,Income,Homelessness,Dwellings Income,20/03/2019,430179,88.27,ALLERDALE,A00342,12+13,2018
Allerdale Borough Council,35106,Income,Homelessness,Dwellings Income,20/03/2019,430180,26.86,ALLERDALE ,A00342,12+13,2018
Allerdale Borough Council,12402,Premises,Corporate Property Maintenance,Electricity,20/03/2019,430181,"1,047.87",N POWER,X00015,12+13,2018
Allerdale Borough Council,12402,Premises,Corporate Property Maintenance,Electricity,20/03/2019,430182,"2,801.07",N POWER ,X00015,12+13,2018
Allerdale Borough Council,12403,Premises,Corporate Property Maintenance,Gas,20/03/2019,430183,306.16,CORONA ENERGY,X00003,12+13,2018
Allerdale Borough Council,12403,Premises,Corporate Property Maintenance,Gas,20/03/2019,430184,443.54,CORONA ENERGY,X00003,12+13,2018
Allerdale Borough Council,12403,Premises,Corporate Property Maintenance,Gas,20/03/2019,430185,330.08,CORONA ENERGY,X00003,12+13,2018
Allerdale Borough Council,12403,Premises,Corporate Property Maintenance,Gas,20/03/2019,430186,54.72,CORONA ENERGY,X00003,12+13,2018
Allerdale Borough Council,12403,Premises,Corporate Property Maintenance,Gas,20/03/2019,430187,70.25,CORONA ENERGY,X00003,12+13,2018
Allerdale Borough Council,12403,Premises,Corporate Property Maintenance,Gas,20/03/2019,430188,234.00,CORONA ENERGY,X00003,12+13,2018
Allerdale Borough Council,12402,Premises,Corporate Property Maintenance,Electricity,20/03/2019,430189,614.03,CORONA ENERGY,X00003,12+13,2018
Allerdale Borough Council,15508,Supplies & Services,Finance and Accounting Pay Group,Subscriptions,20/03/2019,430190,190.00,CIPFA BUSINESS LIMITED,A01791,12+13,2018
Allerdale Borough Council,15508,Supplies & Services,Finance and Accounting Pay Group,Subscriptions,20/03/2019,430191,190.00,CIPFA BUSINESS LIMITED,A01791,12+13,2018
Allerdale Borough Council,15508,Supplies & Services,Banking and Interest,Subscriptions,20/03/2019,430192,"4,965.00",CIPFA BUSINESS LIMITED,A01791,12+13,2018
Allerdale Borough Council,16300,Supplies & Services,Sports Development,Budget-Miscellaneous,20/03/2019,430193,"15,000.00",WORKINGTON TOWN RLFC,A01348,12+13,2018
Allerdale Borough Council,16300,Supplies & Services,Sports Development,Budget-Miscellaneous,20/03/2019,430194,"12,500.00",WORKINGTON AFC,M00532,12+13,2018
Allerdale Borough Council,15501,Supplies & Services,Environmental Initiatives,Consultants Fees,27/03/2019,430195,"4,725.00",WEST CUMBRIA RIVERS TRUST,A02538,12+13,2018
Allerdale Borough Council,21150,Transfer Payments,Corporate Priorities,General Grants,27/03/2019,430196,"2,500.00",BOTTOM UP SOLUTIONS LTD,A02586,12+13,2018
Allerdale Borough Council,15811,Supplies & Services,ICT Infrastructure Costs,Software Maintenance,10/04/2019,430197,"3,430.32",ELITETELE.COM,A02517,12+13,2018
Allerdale Borough Council,15508,Supplies & Services,Human Resources Pay Group,Subscriptions,27/03/2019,430198,200.00,NORTH WEST EMPLOYERS,A00139,12+13,2018
Allerdale Borough Council,10401,Employee Costs,Rogue Landlord Enforcement,Agency Staff Costs,27/03/2019,430199,"1,556.25",G2 RECRUITMENT SOLUTIONS LTD,C00198,12+13,2018
Allerdale Borough Council,20150,Third Party Payments,Footways,General Partnership Service Fees,27/03/2019,430200,"4,616.86",CUMBRIA CC ,A00066,12+13,2018
Allerdale Borough Council,20150,Third Party Payments,Footway Lighting Scheme,General Partnership Service Fees,27/03/2019,430201,"7,500.00",CUMBRIA CC,A00066,12+13,2018
Allerdale Borough Council,12202,Premises,Multi Storey Car Park Utilities & Maint,Electrical Repairs and Service,27/03/2019,430202,"1,143.10",JJ GROUP (CONTRACTING) LTD,C00038,12+13,2018
Allerdale Borough Council,12101,Premises,Corporate Property Maintenance,External Maintenance & Decoration,27/03/2019,430203,"1,295.00",STOBBARTS LIMITED,C00204,12+13,2018
Allerdale Borough Council,12101,Premises,Street Naming and Numbering,External Maintenance & Decoration,29/03/2019,430204,60.00,BARCLAYCARD COMMERCIAL ,X00207,12+13,2018
Allerdale Borough Council,12405,Premises,Homelessness,Rentals and Lease Charges,29/03/2019,430205,892.08,BARCLAYCARD COMMERCIAL ,X00207,12+13,2018
Allerdale Borough Council,20150,Third Party Payments,Keswick Public Toliets,General Partnership Service Fees,27/03/2019,430206,"5,440.00",G H CHAMBERS & SON,C00030,12+13,2018
Allerdale Borough Council,53102,Not Applicable,Waste Contract,Purchase of Vehicles & Moveable Plant,27/03/2019,430207,"152,990.00",DENNIS EAGLE LIMITED,A02608,12+13,2018
Allerdale Borough Council,15402,Supplies & Services,Multi-functional Printers,Photocopier Charges,27/03/2019,430208,181.32,KONICA MINOLTA BUSINESS SOLUTIONS UK LTD,A01556,12+13,2018
Allerdale Borough Council,83605,,Waste Contract,New Bins Purchase,03/04/2019,430209,"11,854.08",MGB PLASTICS LTD,A01301,12+13,2018
Allerdale Borough Council,21150,Transfer Payments,Carnegie Trust Contribution,General Grants,27/03/2019,430210,"8,750.00",CARNEGIE THEATRE TRUST,R00015,12+13,2018
Allerdale Borough Council,16003,Supplies & Services,Off-street - Owned,Security of Cash Movements,27/03/2019,430211,695.52,G4S CASH SOLUTIONS (UK) LTD,A02421,12+13,2018
Allerdale Borough Council,16003,Supplies & Services,Off-street - Owned,Security of Cash Movements,27/03/2019,430212,727.04,G4S CASH SOLUTIONS (UK) LTD,A02421,12+13,2018
Allerdale Borough Council,16003,Supplies & Services,Off-street - Owned,Security of Cash Movements,27/03/2019,430213,664.00,G4S CASH SOLUTIONS (UK) LTD,A02421,12+13,2018
Allerdale Borough Council,53102,Not Applicable,Waste Contract,Purchase of Vehicles & Moveable Plant,27/03/2019,430214,"152,990.00",DENNIS EAGLE LIMITED,A02608,12+13,2018
Allerdale Borough Council,53102,Not Applicable,Waste Contract,Purchase of Vehicles & Moveable Plant,27/03/2019,430215,"152,990.00",DENNIS EAGLE LIMITED,A02608,12+13,2018
Allerdale Borough Council,20304,Third Party Payments,Recycling,Contract Services-Recycling,27/03/2019,430216,"378,102.25",FCC ENVIRONMENT SERVICES (FOCSA),A00085,12+13,2018
Allerdale Borough Council,15501,Supplies & Services,Environmental Initiatives,Consultants Fees,10/04/2019,430217,"1,020.00",LEEMING ASSOCIATES,A02264,12+13,2018
Allerdale Borough Council,12101,Premises,Environmental Initiatives,External Maintenance & Decoration,27/03/2019,430218,936.00,WELDSERV SITE SERVICES LTD,A02635,12+13,2018
Allerdale Borough Council,15102,Supplies & Services,Multi-storey Car Park,Equipment Repair & Maintenance,03/04/2019,430219,459.00,METRIC GROUP LTD,A00568,12+13,2018
Allerdale Borough Council,12202,Premises,Corporate Property Maintenance,Electrical Repairs and Service,27/03/2019,430220,69.18,EDMUNDSON ELECTRICAL LTD,A00304,12+13,2018
Allerdale Borough Council,12405,Premises,Homelessness,Rentals and Lease Charges,27/03/2019,430221,192.50,WAVERLEY HOTEL,A02439,12+13,2018
Allerdale Borough Council,15508,Supplies & Services,Localities & Partnerships,Subscriptions,29/03/2019,430222,660.00,BARCLAYCARD COMMERCIAL ,X00207,12+13,2018
Allerdale Borough Council,12405,Premises,Homelessness,Rentals and Lease Charges,29/03/2019,430223,370.00,BARCLAYCARD COMMERCIAL ,X00207,12+13,2018
Allerdale Borough Council,16350,Supplies & Services,Health & Well-being Group,Miscellaneous Expenses,29/03/2019,430224,23.19,BARCLAYCARD COMMERCIAL ,X00207,12+13,2018
Allerdale Borough Council,83605,,Waste Contract,New Bins Purchase,10/04/2019,430225,"4,656.96",MGB PLASTICS LTD,A01301,12+13,2018
Allerdale Borough Council,83605,,Waste Contract,New Bins Purchase,03/04/2019,430226,"11,854.08",MGB PLASTICS LTD,A01301,12+13,2018
Allerdale Borough Council,83605,,Waste Contract,New Bins Purchase,03/04/2019,430227,"11,854.08",MGB PLASTICS LTD,A01301,12+13,2018
Allerdale Borough Council,83605,,Waste Contract,New Bins Purchase,10/04/2019,430228,"11,854.08",MGB PLASTICS LTD,A01301,12+13,2018
Allerdale Borough Council,83605,,Waste Contract,New Bins Purchase,10/04/2019,430229,"11,854.08",MGB PLASTICS LTD,A01301,12+13,2018
Allerdale Borough Council,51101,Capital Expenditure,Waste Contract,External Contractor Payments (Capital),27/03/2019,430230,"9,562.28",JETT DISTIBUTION T/A JETT TRADE LTD,A02628,12+13,2018
Allerdale Borough Council,51101,Capital Expenditure,Waste Contract,External Contractor Payments (Capital),27/03/2019,430231,"12,994.42",JETT DISTIBUTION T/A JETT TRADE LTD,A02628,12+13,2018
Allerdale Borough Council,51101,Capital Expenditure,Waste Contract,External Contractor Payments (Capital),27/03/2019,430232,"10,916.96",JETT DISTIBUTION T/A JETT TRADE LTD,A02628,12+13,2018
Allerdale Borough Council,51101,Capital Expenditure,Waste Contract,External Contractor Payments (Capital),03/04/2019,430233,"7,668.00",JETT DISTIBUTION T/A JETT TRADE LTD,A02628,12+13,2018
Allerdale Borough Council,51101,Capital Expenditure,Waste Contract,External Contractor Payments (Capital),10/04/2019,430234,"8,656.32",JETT DISTIBUTION T/A JETT TRADE LTD,A02628,12+13,2018
Allerdale Borough Council,83605,,Waste Contract,New Bins Purchase,03/04/2019,430235,"11,854.08",MGB PLASTICS LTD,A01301,12+13,2018
Allerdale Borough Council,83605,,Waste Contract,New Bins Purchase,03/04/2019,430236,"11,854.08",MGB PLASTICS LTD,A01301,12+13,2018
Allerdale Borough Council,83605,,Waste Contract,New Bins Purchase,03/04/2019,430237,"11,854.08",MGB PLASTICS LTD,A01301,12+13,2018
Allerdale Borough Council,83605,,Waste Contract,New Bins Purchase,03/04/2019,430238,"11,854.08",MGB PLASTICS LTD,A01301,12+13,2018
Allerdale Borough Council,83605,,Waste Contract,New Bins Purchase,03/04/2019,430239,"11,854.08",MGB PLASTICS LTD,A01301,12+13,2018
Allerdale Borough Council,85303,Balance Sheet,Solway Coast AONB Core Funding,Consultants Fees,27/03/2019,430240,"3,010.00",ELSWORTH COMMUNICATIONS,A01869,12+13,2018
Allerdale Borough Council,20300,Third Party Payments,Parks and Grounds Maintenance,Budget-Contract Services,,430241,"56,935.33",TIVOLI GROUP LTD,A02568,12+13,2018
Allerdale Borough Council,20100,Third Party Payments,Trade Waste,Budget-Partnership Services,27/03/2019,430242,"92,477.25",CUMBRIA CC,A00066,12+13,2018
Allerdale Borough Council,15101,Supplies & Services,Recycling,Equipment Costs,03/04/2019,430243,988.00,A & C WEBER UK LIMITED,A02372,12+13,2018
Allerdale Borough Council,21303,Transfer Payments,Parish Councils,Parish Councils,28/03/2019,430244,"13,370.83",ABOVE DERWENT PC,X00042,12+13,2018
Allerdale Borough Council,21303,Transfer Payments,Parish Councils,Parish Councils,28/03/2019,430245,"2,400.00",AIKTON P.C.,X00043,12+13,2018
Allerdale Borough Council,21303,Transfer Payments,Parish Councils,Parish Councils,28/03/2019,430246,"4,750.00",ALLHALLOWS P.C.,X00045,12+13,2018
Allerdale Borough Council,21303,Transfer Payments,Parish Councils,Parish Councils,28/03/2019,430247,"5,100.00",ALLONBY P.C.,X00046,12+13,2018
Allerdale Borough Council,21303,Transfer Payments,Parish Councils,Parish Councils,28/03/2019,430248,"33,407.54",ASPATRIA T.C.,X00047,12+13,2018
Allerdale Borough Council,21303,Transfer Payments,Parish Councils,Parish Councils,28/03/2019,430249,"3,675.00",BASSENTHWAITE P.C.,X00048,12+13,2018
Allerdale Borough Council,21303,Transfer Payments,Parish Councils,Parish Councils,28/03/2019,430250,"5,325.00",BLENNERHASSETT P.C.,X00050,12+13,2018
Allerdale Borough Council,21303,Transfer Payments,Parish Councils,Parish Councils,28/03/2019,430251,"1,700.00",BLINDBOTHEL P.C.,X00051,12+13,2018
Allerdale Borough Council,21303,Transfer Payments,Parish Councils,Parish Councils,28/03/2019,430252,"3,625.00",BLINDCRAKE P.C.,X00052,12+13,2018
Allerdale Borough Council,21303,Transfer Payments,Parish Councils,Parish Councils,28/03/2019,430253,"2,575.00",BOLTONS P.C.,X00053,12+13,2018
Allerdale Borough Council,21303,Transfer Payments,Parish Councils,Parish Councils,28/03/2019,430254,"3,413.03",BORROWDALE P.C.,X00054,12+13,2018
Allerdale Borough Council,21303,Transfer Payments,Parish Councils,Parish Councils,28/03/2019,430255,"3,000.00",BOTHEL P.C.,X00055,12+13,2018
Allerdale Borough Council,21303,Transfer Payments,Parish Councils,Parish Councils,28/03/2019,430256,"9,392.00",BOWNESS P.C.,X00056,12+13,2018
Allerdale Borough Council,21303,Transfer Payments,Parish Councils,Parish Councils,28/03/2019,430257,"3,250.00",BRIDEKIRK P.C.,X00057,12+13,2018
Allerdale Borough Council,21303,Transfer Payments,Parish Councils,Parish Councils,28/03/2019,430258,"5,000.00",BRIGHAM P.C.,X00058,12+13,2018
Allerdale Borough Council,21303,Transfer Payments,Parish Councils,Parish Councils,28/03/2019,430259,"3,000.00",BROMFIELD P.C.,X00059,12+13,2018
Allerdale Borough Council,21303,Transfer Payments,Parish Councils,Parish Councils,28/03/2019,430260,"9,338.87",BROUGHTON P.C.,X00060,12+13,2018
Allerdale Borough Council,21303,Transfer Payments,Parish Councils,Parish Councils,28/03/2019,430261,"9,000.00",BROUGHTON MOOR P.C.,X00061,12+13,2018
Allerdale Borough Council,21303,Transfer Payments,Parish Councils,Parish Councils,28/03/2019,430262,735.00,BUTTERMERE P.C.,X00062,12+13,2018
Allerdale Borough Council,21303,Transfer Payments,Parish Councils,Parish Councils,28/03/2019,430263,"6,165.00",CALDBECK P.C.,X00063,12+13,2018
Allerdale Borough Council,21303,Transfer Payments,Parish Councils,Parish Councils,28/03/2019,430264,750.00,CAMERTON P.C.,X00064,12+13,2018
Allerdale Borough Council,21303,Transfer Payments,Parish Councils,Parish Councils,28/03/2019,430265,"99,285.00",COCKERMOUTH T.C.,X00065,12+13,2018
Allerdale Borough Council,21303,Transfer Payments,Parish Councils,Parish Councils,28/03/2019,430266,"8,401.00",CROSSCANONBY P.C.,X00066,12+13,2018
Allerdale Borough Council,21303,Transfer Payments,Parish Councils,Parish Councils,28/03/2019,430267,"6,000.00",DEAN P.C.,X00067,12+13,2018
Allerdale Borough Council,21303,Transfer Payments,Parish Councils,Parish Councils,28/03/2019,430268,"16,000.00",DEARHAM P.C.,X00068,12+13,2018
Allerdale Borough Council,21303,Transfer Payments,Parish Councils,Parish Councils,28/03/2019,430269,875.00,DUNDRAW P.C.,X00069,12+13,2018
Allerdale Borough Council,21303,Transfer Payments,Parish Councils,Parish Councils,28/03/2019,430270,"3,581.09",EMBLETON P.C.,X00070,12+13,2018
Allerdale Borough Council,21303,Transfer Payments,Parish Councils,Parish Councils,28/03/2019,430271,"4,300.00",GILCRUX P.C.,X00071,12+13,2018
Allerdale Borough Council,21303,Transfer Payments,Parish Councils,Parish Councils,28/03/2019,430272,"5,000.00",GREAT CLIFTON P.C.,X00072,12+13,2018
Allerdale Borough Council,21303,Transfer Payments,Parish Councils,Parish Councils,28/03/2019,430273,"5,000.00",GREYSOUTHEN P.C.,X00073,12+13,2018
Allerdale Borough Council,21303,Transfer Payments,Parish Councils,Parish Councils,28/03/2019,430274,"2,050.00",HAYTON & MEALO P.C.,X00074,12+13,2018
Allerdale Borough Council,21303,Transfer Payments,Parish Councils,Parish Councils,28/03/2019,430275,"6,285.14",HOLME ABBEY P.C.,X00075,12+13,2018
Allerdale Borough Council,21303,Transfer Payments,Parish Councils,Parish Councils,28/03/2019,430276,"3,347.50",HOLME EAST WEAVER P.C.,X00076,12+13,2018
Allerdale Borough Council,21303,Transfer Payments,Parish Councils,Parish Councils,28/03/2019,430277,"2,000.00",HOLME LOW P.C.,X00077,12+13,2018
Allerdale Borough Council,21303,Transfer Payments,Parish Councils,Parish Councils,28/03/2019,430278,"2,500.00",HOLME ST CUTHBERT P.C.,X00078,12+13,2018
Allerdale Borough Council,21303,Transfer Payments,Parish Councils,Parish Councils,28/03/2019,430279,"3,277.50",IREBY & ULDALE P.C.,X00079,12+13,2018
Allerdale Borough Council,21303,Transfer Payments,Parish Councils,Parish Councils,28/03/2019,430280,"130,888.50",KESWICK T.C.,X00080,12+13,2018
Allerdale Borough Council,21303,Transfer Payments,Parish Councils,Parish Councils,28/03/2019,430281,"4,375.00",KIRKBAMPTON P.C.,X00081,12+13,2018
Allerdale Borough Council,21303,Transfer Payments,Parish Councils,Parish Councils,28/03/2019,430282,"4,850.00",KIRKBRIDE P.C.,X00082,12+13,2018
Allerdale Borough Council,21303,Transfer Payments,Parish Councils,Parish Councils,28/03/2019,430283,"3,750.00",LITTLE CLIFTON P.C.,X00083,12+13,2018
Allerdale Borough Council,21303,Transfer Payments,Parish Councils,Parish Councils,28/03/2019,430284,"2,805.00",LORTON P.C.,X00084,12+13,2018
Allerdale Borough Council,21303,Transfer Payments,Parish Councils,Parish Councils,28/03/2019,430285,"1,275.00",LOWESWATER P.C.,X00085,12+13,2018
Allerdale Borough Council,21303,Transfer Payments,Parish Councils,Parish Councils,28/03/2019,430286,"109,285.00",MARYPORT T.C.,X00086,12+13,2018
Allerdale Borough Council,21303,Transfer Payments,Parish Councils,Parish Councils,28/03/2019,430287,"5,286.50",OUGHTERSIDE & ALLERBY PC,X00044,12+13,2018
Allerdale Borough Council,21303,Transfer Payments,Parish Councils,Parish Councils,28/03/2019,430288,"5,000.00",PAPCASTLE P.C.,X00087,12+13,2018
Allerdale Borough Council,21303,Transfer Payments,Parish Councils,Parish Councils,28/03/2019,430289,"2,675.00",PLUMBLAND P.C.,X00088,12+13,2018
Allerdale Borough Council,21303,Transfer Payments,Parish Councils,Parish Councils,28/03/2019,430290,"29,709.89",SEATON P.C.,X00089,12+13,2018
Allerdale Borough Council,21303,Transfer Payments,Parish Councils,Parish Councils,28/03/2019,430291,"2,662.50",SEBERGHAM P.C.,X00090,12+13,2018
Allerdale Borough Council,21303,Transfer Payments,Parish Councils,Parish Councils,28/03/2019,430292,"83,910.00",SILLOTH T.C.,X00092,12+13,2018
Allerdale Borough Council,21303,Transfer Payments,Parish Councils,Parish Councils,28/03/2019,430293,"4,043.50",ST JOHNS P.C.,X00093,12+13,2018
Allerdale Borough Council,21303,Transfer Payments,Parish Councils,Parish Councils,28/03/2019,430294,"11,619.17",THURSBY P.C.,X00094,12+13,2018
Allerdale Borough Council,21303,Transfer Payments,Parish Councils,Parish Councils,28/03/2019,430295,"3,203.68",UNDERSKIDDAW P.C.,X00095,12+13,2018
Allerdale Borough Council,21303,Transfer Payments,Parish Councils,Parish Councils,28/03/2019,430296,"1,300.00",WAVERTON P.C.,X00096,12+13,2018
Allerdale Borough Council,21303,Transfer Payments,Parish Councils,Parish Councils,28/03/2019,430297,"2,812.50",WESTNEWTON P.C.,X00097,12+13,2018
Allerdale Borough Council,21303,Transfer Payments,Parish Councils,Parish Councils,28/03/2019,430298,"3,750.00",WESTWARD P.C.,X00098,12+13,2018
Allerdale Borough Council,21303,Transfer Payments,Parish Councils,Parish Councils,28/03/2019,430299,"120,000.00",WIGTON TOWN COUNCIL,X00099,12+13,2018
Allerdale Borough Council,21303,Transfer Payments,Parish Councils,Parish Councils,28/03/2019,430300,"3,000.00",WINSCALES P.C.,X00100,12+13,2018
Allerdale Borough Council,21303,Transfer Payments,Parish Councils,Parish Councils,28/03/2019,430301,"2,696.00",WOODSIDE P.C.,X00101,12+13,2018
Allerdale Borough Council,21303,Transfer Payments,Parish Councils,Parish Councils,28/03/2019,430302,"263,198.50",WORKINGTON T.C.,X00102,12+13,2018
Allerdale Borough Council,12101,Premises,Corporate Property Maintenance,External Maintenance & Decoration,10/04/2019,430303,"1,060.00",BROXAP LIMITED,C00048,12+13,2018
Allerdale Borough Council,12405,Premises,Homelessness,Rentals and Lease Charges,26/03/2019,430304,578.75,BARCLAYCARD COMMERCIAL,X00207,12+13,2018
Allerdale Borough Council,15400,Supplies & Services,Electoral Registration,"Budget-Printing,Stationery & Office Supp",27/03/2019,430305,28.00,ADARE SEC LIMITED,A02306,12+13,2018
Allerdale Borough Council,15508,Supplies & Services,Building Control - Chargeable,Subscriptions,27/03/2019,430306,"2,090.98",LABC DISTRICT SURVEYORS ASSOCIATION,A00308,12+13,2018
Allerdale Borough Council,15506,Supplies & Services,Rogue Landlord Enforcement,Professional Services,,430307,958.33,THE LANDLORDS ASSOCIATION LTD,A01833,12+13,2018
Allerdale Borough Council,15904,Supplies & Services,Members Services,Training,,430308,875.00,LINK SUPPORT SERVICES (UK) LTD,A02631,12+13,2018
Allerdale Borough Council,33113,Income,Building Control - Chargeable,Building Control Fees Income,27/03/2019,430309,37.00,Redacted information - included personal information ,M01590,12+13,2018
Allerdale Borough Council,72104,Holding and Control Accounts,Debtor Control Account,Debtors (Control Account),27/03/2019,430310,"3,023.55",SCAFELL HOTEL LTD,M01591,12+13,2018
Allerdale Borough Council,54105,Capital Expenditure,Disabled Facilities Grants,Grants  Private Individuals (Capital),27/03/2019,430311,"3,373.00",FEARON BUILDERS,C00069,12+13,2018
Allerdale Borough Council,54105,Capital Expenditure,Disabled Facilities Grants,Grants  Private Individuals (Capital),27/03/2019,430312,"4,275.00",DOLPHIN STAIRLIFTS CUMBRIA,X00107,12+13,2018
Allerdale Borough Council,54105,Capital Expenditure,Disabled Facilities Grants,Grants  Private Individuals (Capital),27/03/2019,430313,"4,934.76",PARTNERSHIP IN PROPERTY MANAGEMENT LTD,X00120,12+13,2018
Allerdale Borough Council,54105,Capital Expenditure,Disabled Facilities Grants,Grants  Private Individuals (Capital),27/03/2019,430314,"1,870.00",DOLPHIN STAIRLIFTS CUMBRIA,X00107,12+13,2018
Allerdale Borough Council,54105,Capital Expenditure,Discretionary Grants,Grants  Private Individuals (Capital),27/03/2019,430315,633.35,IMPACT HOUSING ASSOCIATION LTD,A00236,12+13,2018
Allerdale Borough Council,54105,Capital Expenditure,Disabled Facilities Grants,Grants  Private Individuals (Capital),27/03/2019,430316,"4,250.00",DOLPHIN STAIRLIFTS CUMBRIA,X00107,12+13,2018
Allerdale Borough Council,54105,Capital Expenditure,Disabled Facilities Grants,Grants  Private Individuals (Capital),27/03/2019,430317,850.00,CONISTON CONSULTANTS LTD,X00210,12+13,2018
Allerdale Borough Council,15505,Supplies & Services,Solway Coast AONB Core Funding,Licences,26/03/2019,430318,25.00,BARCLAYCARD COMMERCIAL,X00207,12+13,2018
Allerdale Borough Council,14202,Transport,Chief Executive,Hire Car and petrol,29/03/2019,430319,10.89,BARCLAYCARD COMMERCIAL,X00207,12+13,2018
Allerdale Borough Council,15201,Supplies & Services,Chief Executive,Entertainment Of Visitors,29/03/2019,430320,435.62,BARCLAYCARD COMMERCIAL,X00207,12+13,2018
Allerdale Borough Council,15501,Supplies & Services,Planning and Development,Consultants Fees,27/03/2019,430321,251.75,TREESCAPES CONSULTANCY LTD,A02385,12+13,2018
Allerdale Borough Council,15501,Supplies & Services,Strategic Priorities,Consultants Fees,27/03/2019,430322,"3,571.65",BLOOM PROCUREMENT SERVICES LTD,A02360,12+13,2018
Allerdale Borough Council,15506,Supplies & Services,Legal Services,Professional Services,27/03/2019,430323,"9,842.00",BLOOM PROCUREMENT SERVICES LTD,A02360,12+13,2018
Allerdale Borough Council,15203,Supplies & Services,Members Services,Catering Costs and Consumables,10/04/2019,430324,111.99,KENT AND SUSSEX VENDING,A02127,12+13,2018
Allerdale Borough Council,12201,Premises,Multi Storey Car Park Utilities & Maint,Internal Maintenance,27/03/2019,430325,"1,478.52",WF SUPPORT SERVICES LTD,C00013,12+13,2018
Allerdale Borough Council,12201,Premises,Multi Storey Car Park Utilities & Maint,Internal Maintenance,27/03/2019,430326,368.84,WF SUPPORT SERVICES LTD,C00013,12+13,2018
Allerdale Borough Council,10601,Employee Costs,Training,External Courses & Seminar Fees,27/03/2019,430327,54.18,ENTERPRISE RENT A CAR,A01367,12+13,2018
Allerdale Borough Council,15506,Supplies & Services,Legal Services,Professional Services,27/03/2019,430328,"2,791.70",BEVAN BRITTAN LLP,A02181,12+13,2018
Allerdale Borough Council,15506,Supplies & Services,Legal Services,Professional Services,27/03/2019,430329,"1,153.40",BEVAN BRITTAN LLP,A02181,12+13,2018
Allerdale Borough Council,12402,Premises,Tenanted Properties,Electricity,27/03/2019,430330,23.90,ENGIE POWER LIMITED,X00286,12+13,2018
Allerdale Borough Council,15401,Supplies & Services,2019 Elections,General Stationery,27/03/2019,430331,311.24,LYRECO,A00043,12+13,2018
Allerdale Borough Council,15401,Supplies & Services,2019 Elections,General Stationery,27/03/2019,430332,20.72,LYRECO,A00043,12+13,2018
Allerdale Borough Council,10401,Employee Costs,Environmental Protection,Agency Staff Costs,10/04/2019,430333,258.40,HAYS SPECIALIST RECRUITMENT LTD,A00280,12+13,2018
Allerdale Borough Council,10401,Employee Costs,Environmental Protection,Agency Staff Costs,27/03/2019,430334,956.25,G2 RECRUITMENT SOLUTIONS LTD,C00198,12+13,2018
Allerdale Borough Council,15401,Supplies & Services,2019 Elections,General Stationery,10/04/2019,430335,"4,017.48",SHAW & SONS LTD,A00025,12+13,2018
Allerdale Borough Council,15501,Supplies & Services,Environmental Initiatives,Consultants Fees,,430336,475.00,CONIBEAR DESIGN ASSOCIATES (CDA),A02347,12+13,2018
Allerdale Borough Council,15811,Supplies & Services,ICT Infrastructure Costs,Software Maintenance,,430337,"1,085.03",ELITETELE.COM,A02517,12+13,2018
Allerdale Borough Council,12305,Premises,Corporate Property Maintenance,Inspections and Services,10/04/2019,430338,419.00,TYCO FIRE&INTEGRATED SOLUTIONS,A00773,12+13,2018
Allerdale Borough Council,15904,Supplies & Services,Legal Services,Training,27/03/2019,430339,525.00,PETER FULTON TRAINING ASSOCIATES,A02202,12+13,2018
Allerdale Borough Council,15402,Supplies & Services,Multi-functional Printers,Photocopier Charges,27/03/2019,430340,223.47,KONICA MINOLTA BUSINESS SOLUTIONS UK LTD,A01556,12+13,2018
Allerdale Borough Council,15811,Supplies & Services,IT Services,Software Maintenance,26/03/2019,430341,317.00,SAGE (UK) LTD ,A01911,12+13,2018
Allerdale Borough Council,10114,Employee Costs,"Business Support Unit, Devt Services",Agency to Cover Established Post,27/03/2019,430342,354.60,ADECCO RECRUITMENT,A00188,12+13,2018
Allerdale Borough Council,12309,Premises,Corporate Property Maintenance,Fire and Safety,03/04/2019,430343,"5,000.00",COMPASS SERVICES GROUP,A00839,12+13,2018
Allerdale Borough Council,15601,Supplies & Services,Corporate Postage and Stationary,Postage,27/03/2019,430344,563.24,UK MAIL GROUP PLC,A02371,12+13,2018
Allerdale Borough Council,15601,Supplies & Services,Corporate Postage and Stationary,Postage,27/03/2019,430345,121.63,UK MAIL GROUP PLC,A02371,12+13,2018
Allerdale Borough Council,10601,Employee Costs,Training,External Courses & Seminar Fees,27/03/2019,430346,"1,016.80",Redacted information - included personal information ,A02373,12+13,2018
Allerdale Borough Council,15506,Supplies & Services,Reedlands Road Industrial Development,Professional Services,03/04/2019,430347,"14,988.71",KIER SERVICES MAINTENANCE EAST,C00226,12+13,2018
Allerdale Borough Council,15506,Supplies & Services,Reedlands Road Industrial Development,Professional Services,03/04/2019,430348,"11,466.38",KIER SERVICES MAINTENANCE EAST,C00226,12+13,2018
Allerdale Borough Council,14202,Transport,Chief Executive,Hire Car and petrol,29/03/2019,430349,331.87,BARCLAYCARD COMMERCIAL,X00207,12+13,2018
Allerdale Borough Council,10204,Employee Costs,Allerdale Options,Staff Reward Payments,29/03/2019,430350,612.13,BARCLAYCARD COMMERCIAL,X00207,12+13,2018
Allerdale Borough Council,15811,Supplies & Services,IT Services,Software Maintenance,29/03/2019,430351,-162.88,BARCLAYCARD COMMERCIAL ,X00207,12+13,2018
Allerdale Borough Council,16300,Supplies & Services,Tourism Incentive,Budget-Miscellaneous,10/04/2019,430352,295.00,PUBLIC POLICY EXCHANGE,A01596,12+13,2018
Allerdale Borough Council,15601,Supplies & Services,Corporate Postage and Stationary,Postage,27/03/2019,430353,"3,034.74",ROYAL MAIL LETTERS,X00021,12+13,2018
Allerdale Borough Council,14101,Transport,Mayoral Services,Vehicle Leasing,27/03/2019,430361,70.00,DJH SILLOTH LTD T/A SOLWAY PRIVATE HIRE,M00890,12+13,2018
Allerdale Borough Council,15103,Supplies & Services,Workington Nature Partnership,Purchase of Materials,27/03/2019,430362,590.75,CUMBRIA WILDFLOWERS LTD,A02646,12+13,2018
Allerdale Borough Council,14105,Transport,Property Services Pay Group,"Fuel, Lubricants & Consumables",26/03/2019,430363,470.58,BP OIL UK LTD ,X00022,12+13,2018
Allerdale Borough Council,14105,Transport,Property Services Pay Group,"Fuel, Lubricants & Consumables",,430364,251.69,BP OIL UK LTD ,X00022,12+13,2018
Allerdale Borough Council,14105,Transport,Property Services Pay Group,"Fuel, Lubricants & Consumables",,430365,402.97,BP OIL UK LTD ,X00022,12+13,2018
Allerdale Borough Council,14105,Transport,Solway Coast AONB Core Funding,"Fuel, Lubricants & Consumables",,430366,469.78,BP OIL UK LTD ,X00022,12+13,2018
Allerdale Borough Council,14105,Transport,Property Services Pay Group,"Fuel, Lubricants & Consumables",,430367,444.62,BP OIL UK LTD ,X00022,12+13,2018
Allerdale Borough Council,20150,Third Party Payments,Footways,General Partnership Service Fees,,430372,926.00,ELECTRICITY NORTH WEST LTD,A00471,12+13,2018
Allerdale Borough Council,33112,Income,Planning and Development,Planning Fees Income,27/03/2019,430373,924.00,PORTAL PLAN QUEST LTD,M01566,12+13,2018
Allerdale Borough Council,26000,Earmarked Reserves,Festivals & Community Events,Budget-Expd funded from Reserve,27/03/2019,430374,"1,000.00",ASPATRIA RUGBY UNION FOOTBALL CLUB LTD,M00234,12+13,2018
Allerdale Borough Council,12305,Premises,Corporate Property Maintenance,Inspections and Services,10/04/2019,430375,231.50,TYCO FIRE&INTEGRATED SOLUTIONS,A00773,12+13,2018
Allerdale Borough Council,10601,Employee Costs,Training,External Courses & Seminar Fees,,430376,990.00,PET INDUSTRY FEDERATION,A02643,12+13,2018
Allerdale Borough Council,20150,Third Party Payments,Footways,General Partnership Service Fees,,430377,926.00,ELECTRICITY NORTH WEST LTD,A00471,12+13,2018
Allerdale Borough Council,26000,Earmarked Reserves,Licensing Service,Budget-Expd funded from Reserve,27/03/2019,430378,457.04,ADECCO RECRUITMENT,A00188,12+13,2018
Allerdale Borough Council,26000,Earmarked Reserves,Transfer of Land Charges Data,Budget-Expd funded from Reserve,27/03/2019,430379,583.12,ADECCO RECRUITMENT,A00188,12+13,2018
Allerdale Borough Council,26000,Earmarked Reserves,Transfer of Land Charges Data,Budget-Expd funded from Reserve,27/03/2019,430380,583.12,ADECCO RECRUITMENT,A00188,12+13,2018
Allerdale Borough Council,15506,Supplies & Services,Disposal of Allerdale Sites,Professional Services,27/03/2019,430381,"1,800.00",WALTON GOODLAND LTD,A01226,12+13,2018
Allerdale Borough Council,15400,Supplies & Services,Food and Occupational Health,"Budget-Printing,Stationery & Office Supp",03/04/2019,430382,120.00,FIRPRESS PRINTERS,A00063,12+13,2018
Allerdale Borough Council,14104,Transport,Allerdale Fleet,Repairs & Maintenance,27/03/2019,430383,127.00,DOBIES VAUXHALL,A00254,12+13,2018
Allerdale Borough Council,14202,Transport,Chief Executive,Hire Car and petrol,27/03/2019,430384,97.91,ENTERPRISE RENT A CAR,A01367,12+13,2018
Allerdale Borough Council,14104,Transport,Public Convenience Cleaning,Repairs & Maintenance,27/03/2019,430385,185.04,FCC ENVIRONMENT SERVICES (FOCSA),A00085,12+13,2018
Allerdale Borough Council,12203,Premises,Public Convenience Cleaning,Plumbing and Heating Maintenance,27/03/2019,430386,"1,204.00",Redacted information - included personal information ,C00008,12+13,2018
Allerdale Borough Council,53102,Not Applicable,Waste Contract,Purchase of Vehicles & Moveable Plant,27/03/2019,430387,"114,500.00",FCC ENVIRONMENT SERVICES (FOCSA),A00085,12+13,2018
Allerdale Borough Council,12101,Premises,Coastal Protection and Inland Flooding,External Maintenance & Decoration,03/04/2019,430388,116.00,JOHN ELLIOTT LIMITED,C00023,12+13,2018
Allerdale Borough Council,12203,Premises,Corporate Property Maintenance,Plumbing and Heating Maintenance,27/03/2019,430389,617.13,THOMAS ARMSTRONG - CONSTRUCTION,C00003,12+13,2018
Allerdale Borough Council,15104,Supplies & Services,Bereavement Services,Supplies for Resale,27/03/2019,430390,672.72,GRANART,A00644,12+13,2018
Allerdale Borough Council,53102,Not Applicable,Waste Contract,Purchase of Vehicles & Moveable Plant,27/03/2019,430391,"152,990.00",DENNIS EAGLE LIMITED,A02608,12+13,2018
Allerdale Borough Council,53102,Not Applicable,Waste Contract,Purchase of Vehicles & Moveable Plant,27/03/2019,430392,"152,990.00",DENNIS EAGLE LIMITED,A02608,12+13,2018
Allerdale Borough Council,53102,Not Applicable,Waste Contract,Purchase of Vehicles & Moveable Plant,27/03/2019,430393,"152,990.00",DENNIS EAGLE LIMITED,A02608,12+13,2018
Allerdale Borough Council,15506,Supplies & Services,Universal Credit,Professional Services,27/03/2019,430394,80.00,CITIZENS ADVICE BUREAU,A01181,12+13,2018
Allerdale Borough Council,53102,Not Applicable,Waste Contract,Purchase of Vehicles & Moveable Plant,27/03/2019,430395,"152,990.00",DENNIS EAGLE LIMITED,A02608,12+13,2018
Allerdale Borough Council,53102,Not Applicable,Waste Contract,Purchase of Vehicles & Moveable Plant,27/03/2019,430396,"152,990.00",DENNIS EAGLE LIMITED,A02608,12+13,2018
Allerdale Borough Council,15101,Supplies & Services,Public Building Cleaning,Equipment Costs,03/04/2019,430397,"1,314.28",INSTOCK (CHANDLERS),A00050,12+13,2018
Allerdale Borough Council,20150,Third Party Payments,Demolition of Moorclose Sports Centre,General Partnership Service Fees,27/03/2019,430398,"2,963.00",ROLAND HILL (PARSONBY) LTD,C00010,12+13,2018
Allerdale Borough Council,12403,Premises,Homelessness,Gas,27/03/2019,430400,520.11,NPOWER,X00277,12+13,2018
Allerdale Borough Council,21150,Transfer Payments,Shop Front Improvements,General Grants,27/03/2019,430401,900.00,Redacted information - included personal information ,M01592,12+13,2018
Allerdale Borough Council,21150,Transfer Payments,Shop Front Improvements,General Grants,27/03/2019,430402,900.00,Redacted information - included personal information ,M01593,12+13,2018
Allerdale Borough Council,21150,Transfer Payments,Shop Front Improvements,General Grants,27/03/2019,430403,585.00,Redacted information - included personal information ,M01594,12+13,2018
Allerdale Borough Council,21150,Transfer Payments,Shop Front Improvements,General Grants,27/03/2019,430404,900.00,Redacted information - included personal information ,M01595,12+13,2018
Allerdale Borough Council,21150,Transfer Payments,Shop Front Improvements,General Grants,27/03/2019,430405,702.00,Redacted information - included personal information ,M01596,12+13,2018
Allerdale Borough Council,21150,Transfer Payments,Shop Front Improvements,General Grants,27/03/2019,430406,900.00,Redacted information - included personal information ,M01597,12+13,2018
Allerdale Borough Council,16350,Supplies & Services,Leaders Services,Miscellaneous Expenses,29/03/2019,430407,173.78,BARCLAYCARD COMMERCIAL,X00207,12+13,2018
Allerdale Borough Council,10601,Employee Costs,Solway Coast AONB Core Funding,External Courses & Seminar Fees,27/03/2019,430408,199.00,NAAONB,A00735,12+13,2018
Allerdale Borough Council,12302,Premises,Solway Coast AONB Core Funding,Building Cleaning,27/03/2019,430409,109.48,ORIAN SOLUTIONS LTD,A01814,12+13,2018
Allerdale Borough Council,12302,Premises,Solway Coast AONB Core Funding,Building Cleaning,10/04/2019,430410,109.48,ORIAN SOLUTIONS LTD,A01814,12+13,2018
Allerdale Borough Council,16302,Supplies & Services,Solway Coast AONB Core Funding,Room Hire,27/03/2019,430411,70.84,THE GOLF HOTEL,A00749,12+13,2018
Allerdale Borough Council,15102,Supplies & Services,Domestic Waste,Equipment Repair & Maintenance,27/03/2019,430412,959.60,Redacted information - included personal information ,A00176,12+13,2018
Allerdale Borough Council,15702,Supplies & Services,Off-street - Owned,Line Rentals,27/03/2019,430413,60.05,BRITISH TELECOMMUNICATIONS,X00004,12+13,2018
Allerdale Borough Council,54105,Capital Expenditure,Cluster of Empty Homes,Grants  Private Individuals (Capital),27/03/2019,430414,"4,614.38",Redacted information - included personal information ,X00294,12+13,2018
Allerdale Borough Council,54105,Capital Expenditure,Cluster of Empty Homes,Grants  Private Individuals (Capital),27/03/2019,430415,"3,778.01",Redacted information - included personal information ,X00294,12+13,2018
Allerdale Borough Council,54105,Capital Expenditure,Disabled Facilities Grants,Grants  Private Individuals (Capital),27/03/2019,430416,"10,100.00",K BAILIFF & SON LIMITED,X00116,12+13,2018
Allerdale Borough Council,54105,Capital Expenditure,Disabled Facilities Grants,Grants  Private Individuals (Capital),27/03/2019,430417,975.00,CONISTON CONSULTANTS LTD,X00210,12+13,2018
Allerdale Borough Council,54105,Capital Expenditure,Discretionary Grants,Grants  Private Individuals (Capital),27/03/2019,430418,"1,120.00",K BAILIFF & SON LIMITED,X00116,12+13,2018
Allerdale Borough Council,54105,Capital Expenditure,Discretionary Grants,Grants  Private Individuals (Capital),27/03/2019,430419,"17,954.40",K BAILIFF & SON LIMITED,X00116,12+13,2018
Allerdale Borough Council,15101,Supplies & Services,Homelessness,Equipment Costs,27/03/2019,430420,61.84,ALLERDALE BOROUGH COUNCIL,X00034,12+13,2018
Allerdale Borough Council,16350,Supplies & Services,Leaders Portfolio,Miscellaneous Expenses,27/03/2019,430421,"1,000.00",SALTERBECK RESIDENTS ASSOC,M01020,12+13,2018
Allerdale Borough Council,21150,Transfer Payments,Corporate Priorities,General Grants,27/03/2019,430422,"17,500.00",CITIZENS ADVICE BUREAU,A01181,12+13,2018
Allerdale Borough Council,26000,Earmarked Reserves,Festivals & Community Events,Budget-Expd funded from Reserve,27/03/2019,430423,200.00,Redacted information - included personal information ,M01598,12+13,2018
Allerdale Borough Council,35103,Income,Circuses & Fairs,Other Land and Buildings Income,27/03/2019,430424,"2,500.00",JJ FLETCHER &SONS,M01270,12+13,2018
Allerdale Borough Council,12203,Premises,Corporate Property Maintenance,Plumbing and Heating Maintenance,03/04/2019,430425,"8,082.75",W H ARMSTRONG PLUMBING & HEATING CONTRACTORS LTD,C00219,12+13,2018
Allerdale Borough Council,15101,Supplies & Services,Homelessness,Equipment Costs,,430426,79.98,ARGOS BUSINESS SOLUTION-STORE COLLECTION,A00411,12+13,2018
Allerdale Borough Council,15803,Supplies & Services,IT Costs (Allerdale Only),Hardware Purchase,03/04/2019,430427,"6,626.94",STORM TECHNOLOGIES,A01018,12+13,2018
Allerdale Borough Council,15501,Supplies & Services,Solway Coast AONB Core Funding,Consultants Fees,27/03/2019,430428,619.50,SVL HIRE LIMITED,A02604,12+13,2018
Allerdale Borough Council,15501,Supplies & Services,Major Contract Procurement,Consultants Fees,27/03/2019,430430,"19,793.78",BEVAN BRITTAN LLP,A02181,12+13,2018
Allerdale Borough Council,15501,Supplies & Services,Major Contract Procurement,Consultants Fees,10/04/2019,430431,"28,075.20",BEVAN BRITTAN LLP,A02181,12+13,2018
Allerdale Borough Council,10501,Employee Costs,Workington Nature Partnership,Advertising Vacancies,,430432,199.00,WORKING PLANET LIMITED,A02017,12+13,2018
Allerdale Borough Council,15501,Supplies & Services,Building Control - Non-Chargeable,Consultants Fees,29/03/2019,430433,"2,088.00",ASHCROFT DEMOLITION (CUMBRIA) LTD,C00197,12+13,2018
Allerdale Borough Council,12101,Premises,Coastal Protection and Inland Flooding,External Maintenance & Decoration,03/04/2019,430434,"7,512.00",STOBBARTS LIMITED,C00204,12+13,2018
Allerdale Borough Council,15101,Supplies & Services,Public Building Cleaning,Equipment Costs,,430435,165.90,BOOKER CASH & CARRY ,A01419,12+13,2018
Allerdale Borough Council,12303,Premises,Corporate Property Maintenance,Window Cleaning,03/04/2019,430436,385.00,BORDERBRITE LTD,C00155,12+13,2018
Allerdale Borough Council,15602,Supplies & Services,Housing Improvement,Business Reply Licences,29/03/2019,430437,10.12,ROYAL MAIL LETTERS,X00021,12+13,2018
Allerdale Borough Council,15501,Supplies & Services,Local Development Framework,Consultants Fees,,430439,"7,606.40",OVE ARUP & PARTNERS LTD,A02417,12+13,2018
Allerdale Borough Council,10202,Employee Costs,Health and Safety,Medical Screening,29/03/2019,430440,85.00,SPECSAVERS,A00026,12+13,2018
Allerdale Borough Council,15501,Supplies & Services,Waste Contract  Operational Costs,Consultants Fees,29/03/2019,430441,"11,500.00",ABAVUS LIMITED,A02252,12+13,2018
Allerdale Borough Council,12101,Premises,Harrington Harbour,External Maintenance & Decoration,03/04/2019,430442,"1,850.00",JOHN ELLIOTT LIMITED,C00023,12+13,2018
Allerdale Borough Council,15506,Supplies & Services,Estates,Professional Services,03/04/2019,430443,"2,150.00",CARIGIET COWEN,A01190,12+13,2018
Allerdale Borough Council,15103,Supplies & Services,Bereavement Services,Purchase of Materials,,430444,100.00,TIVOLI GROUP LTD,A02568,12+13,2018
Allerdale Borough Council,12202,Premises,Multi Storey Car Park Utilities & Maint,Electrical Repairs and Service,03/04/2019,430445,"6,050.00",JJ GROUP (CONTRACTING) LTD,C00038,12+13,2018
Allerdale Borough Council,15506,Supplies & Services,Assistance - Housing Services,Professional Services,03/04/2019,430446,"8,062.83",CUMBRIA CC,A00066,12+13,2018
Allerdale Borough Council,15507,Supplies & Services,Land Charges Service,Searches,03/04/2019,430447,759.00,CUMBRIA CC,A00066,12+13,2018
Allerdale Borough Council,16102,Supplies & Services,Tourism Incentive,Regeneration Initiatives,03/04/2019,430448,200.00,FLUID PRODUCTIONS LIMITED,A02009,12+13,2018
Allerdale Borough Council,15501,Supplies & Services,Strategic Priorities,Consultants Fees,29/03/2019,430449,"115,665.04",PERFECT CIRCLE JV LTD,A02478,12+13,2018
Allerdale Borough Council,15101,Supplies & Services,Street Cleansing,Equipment Costs,,430450,"3,500.00",CHIPSIDE LIMITED,A00004,12+13,2018
Allerdale Borough Council,53102,Not Applicable,Waste Contract,Purchase of Vehicles & Moveable Plant,29/03/2019,430451,"53,745.00",F&G COMMERCIAL LIMITED,A02609,12+13,2018
Allerdale Borough Council,15501,Supplies & Services,Local Development Framework,Consultants Fees,,430452,"8,199.00",OVE ARUP & PARTNERS LTD,A02417,12+13,2018
Allerdale Borough Council,15811,Supplies & Services,IT Services,Software Maintenance,29/03/2019,430453,"2,937.79",GOWER CONSULTANTS LTD,A00821,12+13,2018
Allerdale Borough Council,10401,Employee Costs,Rogue Landlord Enforcement,Agency Staff Costs,29/03/2019,430454,"1,577.00",G2 RECRUITMENT SOLUTIONS LTD,C00198,12+13,2018
Allerdale Borough Council,15601,Supplies & Services,Corporate Postage and Stationary,Postage,03/04/2019,430455,"2,625.21",UK MAIL GROUP PLC,A02371,12+13,2018
Allerdale Borough Council,15811,Supplies & Services,IT Services,Software Maintenance,,430456,"1,215.00",DOTTED EYES LTD,A00323,12+13,2018
Allerdale Borough Council,33113,Income,Building Control - Chargeable,Building Control Fees Income,29/03/2019,430457,357.29,Redacted information - included personal information ,M01599,12+13,2018
Allerdale Borough Council,15502,Supplies & Services,Legal Services,Land Registry Fees,29/03/2019,430458,51.00,HM LAND REGISTRY ,A00505,12+13,2018
Allerdale Borough Council,15502,Supplies & Services,Assistance - Housing Services,Land Registry Fees,29/03/2019,430459,9.00,HM LAND REGISTRY ,A00505,12+13,2018
Allerdale Borough Council,15502,Supplies & Services,Legal Services,Land Registry Fees,29/03/2019,430460,39.00,HM LAND REGISTRY ,A00505,12+13,2018
Allerdale Borough Council,15502,Supplies & Services,Legal Services,Land Registry Fees,29/03/2019,430461,48.00,HM LAND REGISTRY ,A00505,12+13,2018
Allerdale Borough Council,15502,Supplies & Services,Legal Services,Land Registry Fees,29/03/2019,430462,66.00,HM LAND REGISTRY ,A00505,12+13,2018
Allerdale Borough Council,15502,Supplies & Services,Legal Services,Land Registry Fees,29/03/2019,430463,255.00,HM LAND REGISTRY ,A00505,12+13,2018
Allerdale Borough Council,15502,Supplies & Services,Legal Services,Land Registry Fees,29/03/2019,430464,345.00,HM LAND REGISTRY ,A00505,12+13,2018
Allerdale Borough Council,15502,Supplies & Services,Legal Services,Land Registry Fees,29/03/2019,430465,60.00,HM LAND REGISTRY ,A00505,12+13,2018
Allerdale Borough Council,15502,Supplies & Services,Legal Services,Land Registry Fees,29/03/2019,430466,131.00,HM LAND REGISTRY ,A00505,12+13,2018
Allerdale Borough Council,15502,Supplies & Services,Legal Services,Land Registry Fees,29/03/2019,430467,69.00,HM LAND REGISTRY ,A00505,12+13,2018
Allerdale Borough Council,15502,Supplies & Services,Legal Services,Land Registry Fees,29/03/2019,430468,72.00,HM LAND REGISTRY ,A00505,12+13,2018
Allerdale Borough Council,10401,Employee Costs,Environmental Protection,Agency Staff Costs,29/03/2019,430469,825.00,G2 RECRUITMENT SOLUTIONS LTD,C00198,12+13,2018
Allerdale Borough Council,15506,Supplies & Services,Universal Credit,Professional Services,29/03/2019,430470,50.00,CITIZENS ADVICE BUREAU,A01181,12+13,2018
Allerdale Borough Council,15506,Supplies & Services,Universal Credit,Professional Services,29/03/2019,430471,200.00,CITIZENS ADVICE BUREAU,A01181,12+13,2018
Allerdale Borough Council,12101,Premises,Public Convenience Cleaning,External Maintenance & Decoration,03/04/2019,430472,"3,433.00",K FISHER LTD T/A CUMBRIA ROOFING,C00213,12+13,2018
Allerdale Borough Council,75103,Holding and Control Accounts,Payroll Suspense Account,PAYROLL March 2019 Travel & Subsistence  ,,,"11,614.31",INLAND REVENUE,X00038,12+13,2018
